Workbook

Sheet 総表
A1: 車両数 | B1: =SUBTOTAL(103,A4:A1451) -> 1448 | D1: 車齢 | E1: 6.561305042 | G1: 6.06
A2: 2023-04-01
A3: 所属ｺｰﾄﾞ | B3: 所属 | C3: 車号 | D3: 車種 | E3: 車体 | F3: 車台形式 | G3: 車台番号1 | H3: 車台番号2 | I3: 登録番号1 | J3: 登録２ | K3: ｴﾝｼﾞﾝ型式 | L3: 排気量 又は 定格出力 | M3: 燃料 | N3: 定員座 | O3: 定員立 | P3: 定員計 | Q3: 全長cm | R3: 全幅cm | S3: 全高cm | T3: 重量 kg | U3: 前 kg | V3: 後 kg | W3: 総重量 kg | X3: 入籍日 | Y3: 初度登録
A4: 1 | B4: 品川 | C4: A570 | D4: いすゞ | E4: JBUS | F4: QPG-LV234L3 | G4: LV234L3 | H4: 7001132 | I4: 品川200か | J4: 2950 | K4: 6HK1 | L4: 7.79 | M4: 軽油 | N4: 26 | O4: 49 | P4: =N4+O4+1 -> 76 | Q4: 1042 | R4: 249 | S4: 296 | T4: 10250 | U4: 3120 | V4: 7130 | W4: =P4*55+T4 -> 14430 | X4: 2015-12-02 | Y4: 2015-12-01
A5: 1 | B5: 品川 | C5: A571 | D5: いすゞ | E5: JBUS | F5: QPG-LV234L3 | G5: LV234L3 | H5: 7001133 | I5: 品川200か | J5: 2951 | K5: 6HK1 | L5: 7.79 | M5: 軽油 | N5: 26 | O5: 49 | P5: 76 | Q5: 1042 | R5: 249 | S5: 296 | T5: 10250 | U5: 3120 | V5: 7130 | W5: 14430 | X5: 2015-12-02 | Y5: 2015-12-01
A6: 1 | B6: 品川 | C6: A572 | D6: いすゞ | E6: JBUS | F6: QPG-LV234L3 | G6: LV234L3 | H6: 7001134 | I6: 品川200か | J6: 2952 | K6: 6HK1 | L6: 7.79 | M6: 軽油 | N6: 26 | O6: 49 | P6: 76 | Q6: 1042 | R6: 249 | S6: 296 | T6: 10250 | U6: 3120 | V6: 7130 | W6: 14430 | X6: 2015-12-02 | Y6: 2015-12-01
A7: 1 | B7: 品川 | C7: A573 | D7: いすゞ | E7: JBUS | F7: QPG-LV234L3 | G7: LV234L3 | H7: 7001135 | I7: 品川200か | J7: 2953 | K7: 6HK1 | L7: 7.79 | M7: 軽油 | N7: 26 | O7: 49 | P7: 76 | Q7: 1042 | R7: 249 | S7: 296 | T7: 10250 | U7: 3120 | V7: 7130 | W7: 14430 | X7: 2015-12-02 | Y7: 2015-12-01
A8: 1 | B8: 品川 | C8: A574 | D8: いすゞ | E8: JBUS | F8: QPG-LV234L3 | G8: LV234L3 | H8: 7001152 | I8: 品川200か | J8: 2965 | K8: 6HK1 | L8: 7.79 | M8: 軽油 | N8: 26 | O8: 49 | P8: 76 | Q8: 1042 | R8: 249 | S8: 296 | T8: 10250 | U8: 3120 | V8: 7130 | W8: 14430 | X8: 2016-01-14 | Y8: 2016-01-13
A9: 1 | B9: 品川 | C9: A575 | D9: いすゞ | E9: JBUS | F9: QPG-LV234L3 | G9: LV234L3 | H9: 7001153 | I9: 品川200か | J9: 2966 | K9: 6HK1 | L9: 7.79 | M9: 軽油 | N9: 26 | O9: 49 | P9: 76 | Q9: 1042 | R9: 249 | S9: 296 | T9: 10250 | U9: 3120 | V9: 7130 | W9: 14430 | X9: 2016-01-14 | Y9: 2016-01-13
A10: 1 | B10: 品川 | C10: A576 | D10: いすゞ | E10: JBUS | F10: QPG-LV234L3 | G10: LV234L3 | H10: 7001154 | I10: 品川200か | J10: 2967 | K10: 6HK1 | L10: 7.79 | M10: 軽油 | N10: 26 | O10: 49 | P10: 76 | Q10: 1042 | R10: 249 | S10: 296 | T10: 10250 | U10: 3120 | V10: 7130 | W10: 14430 | X10: 2016-01-14 | Y10: 2016-01-13
A11: 12 | B11: 北 | C11: A577 | D11: いすゞ | E11: JBUS | F11: QPG-LV234L3 | G11: LV234L3 | H11: 7001095 | I11: 練馬230い | J11: 577 | K11: 6HK1 | L11: 7.79 | M11: 軽油 | N11: 26 | O11: 49 | P11: 76 | Q11: 1042 | R11: 249 | S11: 296 | T11: 10250 | U11: 3120 | V11: 7130 | W11: 14430 | X11: 2015-08-07 | Y11: 2015-08-06
A12: 3 | B12: 港南 | C12: A578 | D12: いすゞ | E12: JBUS | F12: QPG-LV234L3 | G12: LV234L3 | H12: 7001096 | I12: 品川200か | J12: 2897 | K12: 6HK1 | L12: 7.79 | M12: 軽油 | N12: 26 | O12: 49 | P12: 76 | Q12: 1042 | R12: 249 | S12: 296 | T12: 10250 | U12: 3120 | V12: 7130 | W12: 14430 | X12: 2015-08-07 | Y12: 2015-08-06
A13: 3 | B13: 港南 | C13: A579 | D13: いすゞ | E13: JBUS | F13: QPG-LV234L3 | G13: LV234L3 | H13: 7001097 | I13: 品川200か | J13: 2898 | K13: 6HK1 | L13: 7.79 | M13: 軽油 | N13: 26 | O13: 49 | P13: 76 | Q13: 1042 | R13: 249 | S13: 296 | T13: 10250 | U13: 3120 | V13: 7130 | W13: 14430 | X13: 2015-08-07 | Y13: 2015-08-06
A14: 3 | B14: 港南 | C14: A580 | D14: いすゞ | E14: JBUS | F14: QPG-LV234L3 | G14: LV234L3 | H14: 7001101 | I14: 品川200か | J14: 2904 | K14: 6HK1 | L14: 7.79 | M14: 軽油 | N14: 26 | O14: 49 | P14: 76 | Q14: 1042 | R14: 249 | S14: 296 | T14: 10250 | U14: 3120 | V14: 7130 | W14: 14430 | X14: 2015-09-01 | Y14: 2015-08-31
A15: 3 | B15: 港南 | C15: A581 | D15: いすゞ | E15: JBUS | F15: QPG-LV234L3 | G15: LV234L3 | H15: 7001102 | I15: 品川200か | J15: 2905 | K15: 6HK1 | L15: 7.79 | M15: 軽油 | N15: 26 | O15: 49 | P15: 76 | Q15: 1042 | R15: 249 | S15: 296 | T15: 10250 | U15: 3120 | V15: 7130 | W15: 14430 | X15: 2015-09-01 | Y15: 2015-08-31
A16: 22 | B16: 有明 | C16: A582 | D16: いすゞ | E16: JBUS | F16: QPG-LV234L3 | G16: LV234L3 | H16: 7001115 | I16: 江東200か | J16: 99 | K16: 6HK1 | L16: 7.79 | M16: 軽油 | N16: 26 | O16: 49 | P16: 76 | Q16: 1042 | R16: 249 | S16: 296 | T16: 10250 | U16: 3120 | V16: 7130 | W16: 14430 | X16: 2015-10-03 | Y16: 2015-10-02
A17: 4 | B17: 渋谷 | C17: A584 | D17: いすゞ | E17: JBUS | F17: QPG-LV234L3 | G17: LV234L3 | H17: 7001139 | I17: 品川200か | J17: 2960 | K17: 6HK1 | L17: 7.79 | M17: 軽油 | N17: 26 | O17: 49 | P17: 76 | Q17: 1042 | R17: 249 | S17: 296 | T17: 10250 | U17: 3120 | V17: 7130 | W17: 14430 | X17: 2015-12-05 | Y17: 2015-12-04
A18: 4 | B18: 渋谷 | C18: A585 | D18: いすゞ | E18: JBUS | F18: QPG-LV234L3 | G18: LV234L3 | H18: 7001149 | I18: 品川200か | J18: 2962 | K18: 6HK1 | L18: 7.79 | M18: 軽油 | N18: 26 | O18: 49 | P18: 76 | Q18: 1042 | R18: 249 | S18: 296 | T18: 10250 | U18: 3120 | V18: 7130 | W18: 14430 | X18: 2016-01-13 | Y18: 2016-01-12
A19: 4 | B19: 渋谷 | C19: A586 | D19: いすゞ | E19: JBUS | F19: QPG-LV234L3 | G19: LV234L3 | H19: 7001150 | I19: 品川200か | J19: 2963 | K19: 6HK1 | L19: 7.79 | M19: 軽油 | N19: 26 | O19: 49 | P19: 76 | Q19: 1042 | R19: 249 | S19: 296 | T19: 10250 | U19: 3120 | V19: 7130 | W19: 14430 | X19: 2016-01-13 | Y19: 2016-01-12
A20: 4 | B20: 渋谷 | C20: A587 | D20: いすゞ | E20: JBUS | F20: QPG-LV234L3 | G20: LV234L3 | H20: 7001151 | I20: 品川200か | J20: 2964 | K20: 6HK1 | L20: 7.79 | M20: 軽油 | N20: 26 | O20: 49 | P20: 76 | Q20: 1042 | R20: 249 | S20: 296 | T20: 10250 | U20: 3120 | V20: 7130 | W20: 14430 | X20: 2016-01-13 | Y20: 2016-01-12
A21: 5 | B21: 新宿 | C21: A588 | D21: いすゞ | E21: JBUS | F21: QPG-LV234L3 | G21: LV234L3 | H21: 7001123 | I21: 練馬200か | J21: 3074 | K21: 6HK1 | L21: 7.79 | M21: 軽油 | N21: 26 | O21: 49 | P21: 76 | Q21: 1042 | R21: 249 | S21: 296 | T21: 10260 | U21: 3130 | V21: 7130 | W21: 14440 | X21: 2015-11-03 | Y21: 2015-11-02
A22: 5 | B22: 新宿 | C22: A589 | D22: いすゞ | E22: JBUS | F22: QPG-LV234L3 | G22: LV234L3 | H22: 7001124 | I22: 練馬200か | J22: 3075 | K22: 6HK1 | L22: 7.79 | M22: 軽油 | N22: 26 | O22: 49 | P22: 76 | Q22: 1042 | R22: 249 | S22: 296 | T22: 10250 | U22: 3130 | V22: 7120 | W22: 14430 | X22: 2015-11-03 | Y22: 2015-11-02
A23: 6 | B23: 小滝橋 | C23: A590 | D23: いすゞ | E23: JBUS | F23: QPG-LV234L3 | G23: LV234L3 | H23: 7001113 | I23: 練馬200か | J23: 3062 | K23: 6HK1 | L23: 7.79 | M23: 軽油 | N23: 26 | O23: 49 | P23: 76 | Q23: 1042 | R23: 249 | S23: 298 | T23: 10240 | U23: 3130 | V23: 7130 | W23: 14420 | X23: 2015-09-18 | Y23: 2015-09-17
A24: 6 | B24: 小滝橋 | C24: A591 | D24: いすゞ | E24: JBUS | F24: QPG-LV234L3 | G24: LV234L3 | H24: 7001114 | I24: 練馬200か | J24: 3063 | K24: 6HK1 | L24: 7.79 | M24: 軽油 | N24: 26 | O24: 49 | P24: 76 | Q24: 1042 | R24: 249 | S24: 298 | T24: 10260 | U24: 3130 | V24: 7130 | W24: 14440 | X24: 2015-09-18 | Y24: 2015-09-17
A25: 6 | B25: 小滝橋 | C25: A592 | D25: いすゞ | E25: JBUS | F25: QPG-LV234L3 | G25: LV234L3 | H25: 7001163 | I25: 練馬200か | J25: 3107 | K25: 6HK1 | L25: 7.79 | M25: 軽油 | N25: 26 | O25: 49 | P25: 76 | Q25: 1042 | R25: 249 | S25: 296 | T25: 10240 | U25: 3120 | V25: 7120 | W25: 14420 | X25: 2016-02-05 | Y25: 2016-02-04
A26: 6 | B26: 小滝橋 | C26: A593 | D26: いすゞ | E26: JBUS | F26: QPG-LV234L3 | G26: LV234L3 | H26: 7001164 | I26: 練馬200か | J26: 3108 | K26: 6HK1 | L26: 7.79 | M26: 軽油 | N26: 26 | O26: 49 | P26: 76 | Q26: 1042 | R26: 249 | S26: 296 | T26: 10210 | U26: 3100 | V26: 7110 | W26: 14390 | X26: 2016-02-05 | Y26: 2016-02-04
A27: 6 | B27: 小滝橋 | C27: A594 | D27: いすゞ | E27: JBUS | F27: QPG-LV234L3 | G27: LV234L3 | H27: 7001165 | I27: 練馬200か | J27: 3109 | K27: 6HK1 | L27: 7.79 | M27: 軽油 | N27: 26 | O27: 49 | P27: 76 | Q27: 1042 | R27: 249 | S27: 296 | T27: 10220 | U27: 3110 | V27: 7110 | W27: 14400 | X27: 2016-02-05 | Y27: 2016-02-04
A28: 19 | B28: 江戸川 | C28: A595 | D28: いすゞ | E28: JBUS | F28: QPG-LV234L3 | G28: LV234L3 | H28: 7001116 | I28: 足立200か | J28: 4226 | K28: 6HK1 | L28: 7.79 | M28: 軽油 | N28: 26 | O28: 49 | P28: 76 | Q28: 1042 | R28: 249 | S28: 296 | T28: 10250 | U28: 3120 | V28: 7130 | W28: 14430 | X28: 2015-10-08 | Y28: 2015-10-07
A29: 8 | B29: 杉並 | C29: A596 | D29: いすゞ | E29: JBUS | F29: QPG-LV234L3 | G29: LV234L3 | H29: 7001117 | I29: 杉並200か | J29: 29 | K29: 6HK1 | L29: 7.79 | M29: 軽油 | N29: 26 | O29: 49 | P29: 76 | Q29: 1042 | R29: 249 | S29: 296 | T29: 10250 | U29: 3120 | V29: 7130 | W29: 14430 | X29: 2015-10-08 | Y29: 2015-10-07
A30: 18 | B30: 江東 | C30: A597 | D30: いすゞ | E30: JBUS | F30: QPG-LV234L3 | G30: LV234L3 | H30: 7001118 | I30: 足立230う | J30: 597 | K30: 6HK1 | L30: 7.79 | M30: 軽油 | N30: 26 | O30: 49 | P30: 76 | Q30: 1042 | R30: 249 | S30: 296 | T30: 10250 | U30: 3120 | V30: 7130 | W30: 14430 | X30: 2015-10-08 | Y30: 2015-10-07
A31: 8 | B31: 杉並 | C31: A598 | D31: いすゞ | E31: JBUS | F31: QPG-LV234L3 | G31: LV234L3 | H31: 7001166 | I31: 杉並200か | J31: 57 | K31: 6HK1 | L31: 7.79 | M31: 軽油 | N31: 26 | O31: 49 | P31: 76 | Q31: 1042 | R31: 249 | S31: 298 | T31: 10220 | U31: 3110 | V31: 7110 | W31: 14400 | X31: 2016-02-06 | Y31: 2016-02-05
A32: 8 | B32: 杉並 | C32: A599 | D32: いすゞ | E32: JBUS | F32: QPG-LV234L3 | G32: LV234L3 | H32: 7001167 | I32: 杉並200か | J32: 58 | K32: 6HK1 | L32: 7.79 | M32: 軽油 | N32: 26 | O32: 49 | P32: 76 | Q32: 1042 | R32: 249 | S32: 298 | T32: 10220 | U32: 3100 | V32: 7120 | W32: 14400 | X32: 2016-02-06 | Y32: 2016-02-05
A33: 8 | B33: 杉並 | C33: A600 | D33: いすゞ | E33: JBUS | F33: QPG-LV234L3 | G33: LV234L3 | H33: 7001172 | I33: 杉並200か | J33: 59 | K33: 6HK1 | L33: 7.79 | M33: 軽油 | N33: 26 | O33: 49 | P33: 76 | Q33: 1042 | R33: 249 | S33: 299 | T33: 10230 | U33: 3110 | V33: 7120 | W33: 14410 | X33: 2016-02-13 | Y33: 2016-02-12
A34: 19 | B34: 江戸川 | C34: A601 | D34: いすゞ | E34: JBUS | F34: QPG-LV234L3 | G34: LV234L3 | H34: 7001173 | I34: 足立200か | J34: 4206 | K34: 6HK1 | L34: 7.79 | M34: 軽油 | N34: 26 | O34: 49 | P34: 76 | Q34: 1042 | R34: 249 | S34: 299 | T34: 10240 | U34: 3110 | V34: 7130 | W34: 14420 | X34: 2016-02-13 | Y34: 2016-02-12
A35: 7 | B35: 早稲田 | C35: A602 | D35: いすゞ | E35: JBUS | F35: QPG-LV234L3 | G35: LV234L3 | H35: 7001158 | I35: 練馬200か | J35: 3104 | K35: 6HK1 | L35: 7.79 | M35: 軽油 | N35: 26 | O35: 49 | P35: 76 | Q35: 1042 | R35: 249 | S35: 296 | T35: 10190 | U35: 3090 | V35: 7100 | W35: 14370 | X35: 2016-01-26 | Y35: 2016-01-25
A36: 7 | B36: 早稲田 | C36: A603 | D36: いすゞ | E36: JBUS | F36: QPG-LV234L3 | G36: LV234L3 | H36: 7001159 | I36: 練馬200か | J36: 3105 | K36: 6HK1 | L36: 7.79 | M36: 軽油 | N36: 26 | O36: 49 | P36: 76 | Q36: 1042 | R36: 249 | S36: 296 | T36: 10220 | U36: 3120 | V36: 7130 | W36: 14400 | X36: 2016-01-26 | Y36: 2016-01-25
A37: 7 | B37: 早稲田 | C37: A604 | D37: いすゞ | E37: JBUS | F37: QPG-LV234L3 | G37: LV234L3 | H37: 7001160 | I37: 練馬200か | J37: 3106 | K37: 6HK1 | L37: 7.79 | M37: 軽油 | N37: 26 | O37: 49 | P37: 76 | Q37: 1042 | R37: 249 | S37: 296 | T37: 10220 | U37: 3120 | V37: 7130 | W37: 14400 | X37: 2016-01-26 | Y37: 2016-01-25
A38: 9 | B38: 青梅 | C38: A605 | D38: いすゞ | E38: JBUS | F38: QKG-LV234L3 | G38: LV234L3 | H38: 7001181 | I38: 八王子200か | J38: 1966 | K38: 6HK1 | L38: 7.79 | M38: 軽油 | N38: 26 | O38: 49 | P38: 76 | Q38: 1042 | R38: 249 | S38: 296 | T38: 10290 | U38: 3110 | V38: 7180 | W38: 14470 | X38: 2015-11-05 | Y38: 2015-11-04
A39: 9 | B39: 青梅 | C39: A606 | D39: いすゞ | E39: JBUS | F39: QKG-LV234L3 | G39: LV234L3 | H39: 7001182 | I39: 八王子200か | J39: 1970 | K39: 6HK1 | L39: 7.79 | M39: 軽油 | N39: 26 | O39: 49 | P39: 76 | Q39: 1042 | R39: 249 | S39: 296 | T39: 10290 | U39: 3110 | V39: 7180 | W39: 14470 | X39: 2015-11-21 | Y39: 2015-11-20
A40: 9 | B40: 青梅 | C40: A607 | D40: いすゞ | E40: JBUS | F40: QKG-LV234L3 | G40: LV234L3 | H40: 7001183 | I40: 八王子200か | J40: 1971 | K40: 6HK1 | L40: 7.79 | M40: 軽油 | N40: 26 | O40: 49 | P40: 76 | Q40: 1042 | R40: 249 | S40: 296 | T40: 10290 | U40: 3110 | V40: 7180 | W40: 14470 | X40: 2015-11-21 | Y40: 2015-11-20
A41: 11 | B41: 巣鴨 | C41: A608 | D41: いすゞ | E41: JBUS | F41: QPG-LV234L3 | G41: LV234L3 | H41: 7001106 | I41: 練馬200か | J41: 3057 | K41: 6HK1 | L41: 7.79 | M41: 軽油 | N41: 26 | O41: 49 | P41: 76 | Q41: 1042 | R41: 249 | S41: 298 | T41: 10230 | U41: 3110 | V41: 7120 | W41: 14410 | X41: 2015-09-03 | Y41: 2015-09-02
A42: 11 | B42: 巣鴨 | C42: A609 | D42: いすゞ | E42: JBUS | F42: QPG-LV234L3 | G42: LV234L3 | H42: 7001107 | I42: 練馬200か | J42: 3058 | K42: 6HK1 | L42: 7.79 | M42: 軽油 | N42: 26 | O42: 49 | P42: 76 | Q42: 1042 | R42: 249 | S42: 298 | T42: 10230 | U42: 3120 | V42: 7110 | W42: 14410 | X42: 2015-09-03 | Y42: 2015-09-02
A43: 11 | B43: 巣鴨 | C43: A610 | D43: いすゞ | E43: JBUS | F43: QPG-LV234L3 | G43: LV234L3 | H43: 7001121 | I43: 練馬200か | J43: 3070 | K43: 6HK1 | L43: 7.79 | M43: 軽油 | N43: 26 | O43: 49 | P43: 76 | Q43: 1042 | R43: 249 | S43: 296 | T43: 10190 | U43: 3090 | V43: 7100 | W43: 14370 | X43: 2015-10-29 | Y43: 2015-10-28
A44: 11 | B44: 巣鴨 | C44: A611 | D44: いすゞ | E44: JBUS | F44: QPG-LV234L3 | G44: LV234L3 | H44: 7001122 | I44: 練馬200か | J44: 3071 | K44: 6HK1 | L44: 7.79 | M44: 軽油 | N44: 26 | O44: 49 | P44: 76 | Q44: 1042 | R44: 249 | S44: 296 | T44: 10220 | U44: 3110 | V44: 7110 | W44: 14400 | X44: 2015-10-29 | Y44: 2015-10-28
A45: 11 | B45: 巣鴨 | C45: A612 | D45: いすゞ | E45: JBUS | F45: QPG-LV234L3 | G45: LV234L3 | H45: 7001129 | I45: 練馬200か | J45: 3082 | K45: 6HK1 | L45: 7.79 | M45: 軽油 | N45: 26 | O45: 49 | P45: 76 | Q45: 1042 | R45: 249 | S45: 296 | T45: 10230 | U45: 3110 | V45: 7120 | W45: 14410 | X45: 2015-11-28 | Y45: 2015-11-27
A46: 11 | B46: 巣鴨 | C46: A613 | D46: いすゞ | E46: JBUS | F46: QPG-LV234L3 | G46: LV234L3 | H46: 7001130 | I46: 練馬200か | J46: 3083 | K46: 6HK1 | L46: 7.79 | M46: 軽油 | N46: 26 | O46: 49 | P46: 76 | Q46: 1042 | R46: 249 | S46: 296 | T46: 10230 | U46: 3110 | V46: 7120 | W46: 14410 | X46: 2015-11-28 | Y46: 2015-11-27
A47: 11 | B47: 巣鴨 | C47: A614 | D47: いすゞ | E47: JBUS | F47: QPG-LV234L3 | G47: LV234L3 | H47: 7001131 | I47: 練馬200か | J47: 3084 | K47: 6HK1 | L47: 7.79 | M47: 軽油 | N47: 26 | O47: 49 | P47: 76 | Q47: 1042 | R47: 249 | S47: 296 | T47: 10220 | U47: 3110 | V47: 7110 | W47: 14400 | X47: 2015-11-28 | Y47: 2015-11-27
A48: 11 | B48: 巣鴨 | C48: A615 | D48: いすゞ | E48: JBUS | F48: QPG-LV234L3 | G48: LV234L3 | H48: 7001142 | I48: 練馬200か | J48: 3085 | K48: 6HK1 | L48: 7.79 | M48: 軽油 | N48: 26 | O48: 49 | P48: 76 | Q48: 1042 | R48: 249 | S48: 297 | T48: 10250 | U48: 3130 | V48: 7120 | W48: 14430 | X48: 2015-12-15 | Y48: 2015-12-14
A49: 11 | B49: 巣鴨 | C49: A616 | D49: いすゞ | E49: JBUS | F49: QPG-LV234L3 | G49: LV234L3 | H49: 7001143 | I49: 練馬200か | J49: 3086 | K49: 6HK1 | L49: 7.79 | M49: 軽油 | N49: 26 | O49: 49 | P49: 76 | Q49: 1042 | R49: 249 | S49: 297 | T49: 10230 | U49: 3120 | V49: 7110 | W49: 14410 | X49: 2015-12-15 | Y49: 2015-12-14
A50: 11 | B50: 巣鴨 | C50: A617 | D50: いすゞ | E50: JBUS | F50: QPG-LV234L3 | G50: LV234L3 | H50: 7001155 | I50: 練馬200か | J50: 3101 | K50: 6HK1 | L50: 7.79 | M50: 軽油 | N50: 26 | O50: 49 | P50: 76 | Q50: 1042 | R50: 249 | S50: 298 | T50: 10210 | U50: 3100 | V50: 7110 | W50: 14390 | X50: 2016-01-23 | Y50: 2016-01-22
A51: 11 | B51: 巣鴨 | C51: A618 | D51: いすゞ | E51: JBUS | F51: QPG-LV234L3 | G51: LV234L3 | H51: 7001156 | I51: 練馬200か | J51: 3102 | K51: 6HK1 | L51: 7.79 | M51: 軽油 | N51: 26 | O51: 49 | P51: 76 | Q51: 1042 | R51: 249 | S51: 298 | T51: 10230 | U51: 3110 | V51: 7120 | W51: 14410 | X51: 2016-01-23 | Y51: 2016-01-22
A52: 11 | B52: 巣鴨 | C52: A619 | D52: いすゞ | E52: JBUS | F52: QPG-LV234L3 | G52: LV234L3 | H52: 7001157 | I52: 練馬200か | J52: 3103 | K52: 6HK1 | L52: 7.79 | M52: 軽油 | N52: 26 | O52: 49 | P52: 76 | Q52: 1042 | R52: 249 | S52: 298 | T52: 10220 | U52: 3100 | V52: 7120 | W52: 14400 | X52: 2016-01-23 | Y52: 2016-01-22
A53: 11 | B53: 巣鴨 | C53: A620 | D53: いすゞ | E53: JBUS | F53: QPG-LV234L3 | G53: LV234L3 | H53: 7001168 | I53: 練馬200か | J53: 3110 | K53: 6HK1 | L53: 7.79 | M53: 軽油 | N53: 26 | O53: 49 | P53: 76 | Q53: 1042 | R53: 249 | S53: 296 | T53: 10250 | U53: 3120 | V53: 7130 | W53: 14430 | X53: 2016-02-10 | Y53: 2016-02-09
A54: 11 | B54: 巣鴨 | C54: A621 | D54: いすゞ | E54: JBUS | F54: QPG-LV234L3 | G54: LV234L3 | H54: 7001169 | I54: 練馬200か | J54: 3111 | K54: 6HK1 | L54: 7.79 | M54: 軽油 | N54: 26 | O54: 49 | P54: 76 | Q54: 1042 | R54: 249 | S54: 296 | T54: 10250 | U54: 1320 | V54: 7130 | W54: 14430 | X54: 2016-02-10 | Y54: 2016-02-09
A55: 12 | B55: 北 | C55: A622 | D55: いすゞ | E55: JBUS | F55: QPG-LV234L3 | G55: LV234L3 | H55: 7001099 | I55: 練馬200か | J55: 3052 | K55: 6HK1 | L55: 7.79 | M55: 軽油 | N55: 26 | O55: 49 | P55: 76 | Q55: 1042 | R55: 249 | S55: 300 | T55: 10250 | U55: 3120 | V55: 7130 | W55: 14430 | X55: 2015-08-29 | Y55: 2015-08-28
A56: 12 | B56: 北 | C56: A623 | D56: いすゞ | E56: JBUS | F56: QPG-LV234L3 | G56: LV234L3 | H56: 7001100 | I56: 練馬200か | J56: 3053 | K56: 6HK1 | L56: 7.79 | M56: 軽油 | N56: 26 | O56: 49 | P56: 76 | Q56: 1042 | R56: 249 | S56: 300 | T56: 10250 | U56: 3120 | V56: 7130 | W56: 14430 | X56: 2015-08-28 | Y56: 2015-08-28
A57: 13 | B57: 練馬 | C57: A624 | D57: いすゞ | E57: JBUS | F57: QPG-LV234L3 | G57: LV234L3 | H57: 7001086 | I57: 練馬200か | J57: 3033 | K57: 6HK1 | L57: 7.79 | M57: 軽油 | N57: 26 | O57: 49 | P57: 76 | Q57: 1042 | R57: 249 | S57: 296 | T57: 10250 | U57: 3120 | V57: 7130 | W57: 14430 | X57: 2015-07-25 | Y57: 2015-07-24
A58: 13 | B58: 練馬 | C58: A625 | D58: いすゞ | E58: JBUS | F58: QPG-LV234L3 | G58: LV234L3 | H58: 7001087 | I58: 練馬200か | J58: 3034 | K58: 6HK1 | L58: 7.79 | M58: 軽油 | N58: 26 | O58: 49 | P58: 76 | Q58: 1042 | R58: 249 | S58: 296 | T58: 10250 | U58: 3120 | V58: 7130 | W58: 14430 | X58: 2015-07-25 | Y58: 2015-07-24
A59: 13 | B59: 練馬 | C59: A626 | D59: いすゞ | E59: JBUS | F59: QPG-LV234L3 | G59: LV234L3 | H59: 7001093 | I59: 練馬200か | J59: 3039 | K59: 6HK1 | L59: 7.79 | M59: 軽油 | N59: 26 | O59: 49 | P59: 76 | Q59: 1042 | R59: 249 | S59: 296 | T59: 10250 | U59: 3120 | V59: 7130 | W59: 14430 | X59: 2015-08-04 | Y59: 2015-08-03
A60: 13 | B60: 練馬 | C60: A627 | D60: いすゞ | E60: JBUS | F60: QPG-LV234L3 | G60: LV234L3 | H60: 7001094 | I60: 練馬200か | J60: 3040 | K60: 6HK1 | L60: 7.79 | M60: 軽油 | N60: 26 | O60: 49 | P60: 76 | Q60: 1042 | R60: 249 | S60: 296 | T60: 10230 | U60: 3110 | V60: 7120 | W60: 14410 | X60: 2015-08-04 | Y60: 2015-08-03
A61: 14 | B61: 千住 | C61: A628 | D61: いすゞ | E61: JBUS | F61: QPG-LV234L3 | G61: LV234L3 | H61: 7001146 | I61: 足立200か | J61: 3282 | K61: 6HK1 | L61: 7.79 | M61: 軽油 | N61: 26 | O61: 49 | P61: 76 | Q61: 1042 | R61: 249 | S61: 296 | T61: 10250 | U61: 3120 | V61: 7130 | W61: 14430 | X61: 2015-12-26 | Y61: 2015-12-25
A62: 14 | B62: 千住 | C62: A629 | D62: いすゞ | E62: JBUS | F62: QPG-LV234L3 | G62: LV234L3 | H62: 7001147 | I62: 足立200か | J62: 3283 | K62: 6HK1 | L62: 7.79 | M62: 軽油 | N62: 26 | O62: 49 | P62: 76 | Q62: 1042 | R62: 249 | S62: 296 | T62: 10250 | U62: 3120 | V62: 7130 | W62: 14430 | X62: 2015-12-26 | Y62: 2015-12-25
A63: 14 | B63: 千住 | C63: A630 | D63: いすゞ | E63: JBUS | F63: QPG-LV234L3 | G63: LV234L3 | H63: 7001148 | I63: 足立200か | J63: 3284 | K63: 6HK1 | L63: 7.79 | M63: 軽油 | N63: 26 | O63: 49 | P63: 76 | Q63: 1042 | R63: 249 | S63: 296 | T63: 10250 | U63: 3120 | V63: 7130 | W63: 14430 | X63: 2015-12-26 | Y63: 2015-12-25
A64: 15 | B64: 南千住 | C64: A631 | D64: いすゞ | E64: JBUS | F64: QPG-LV234L3 | G64: LV234L3 | H64: 7001174 | I64: 足立200か | J64: 3310 | K64: 6HK1 | L64: 7.79 | M64: 軽油 | N64: 26 | O64: 49 | P64: 76 | Q64: 1042 | R64: 249 | S64: 296 | T64: 10250 | U64: 3120 | V64: 7130 | W64: 14430 | X64: 2016-02-20 | Y64: 2016-02-19
A65: 15 | B65: 南千住 | C65: A632 | D65: いすゞ | E65: JBUS | F65: QPG-LV234L3 | G65: LV234L3 | H65: 7001175 | I65: 足立200か | J65: 3311 | K65: 6HK1 | L65: 7.79 | M65: 軽油 | N65: 26 | O65: 49 | P65: 76 | Q65: 1042 | R65: 249 | S65: 296 | T65: 10250 | U65: 3120 | V65: 7130 | W65: 14430 | X65: 2016-02-20 | Y65: 2016-02-19
A66: 15 | B66: 南千住 | C66: A633 | D66: いすゞ | E66: JBUS | F66: QPG-LV234L3 | G66: LV234L3 | H66: 7001176 | I66: 足立200か | J66: 3312 | K66: 6HK1 | L66: 7.79 | M66: 軽油 | N66: 26 | O66: 49 | P66: 76 | Q66: 1042 | R66: 249 | S66: 296 | T66: 10250 | U66: 3120 | V66: 7130 | W66: 14430 | X66: 2016-02-20 | Y66: 2016-02-19
A67: 15 | B67: 南千住 | C67: A634 | D67: いすゞ | E67: JBUS | F67: QPG-LV234L3 | G67: LV234L3 | H67: 7001089 | I67: 足立200か | J67: 3175 | K67: 6HK1 | L67: 7.79 | M67: 軽油 | N67: 26 | O67: 49 | P67: =N67+O67+1 -> 76 | Q67: 1042 | R67: 249 | S67: 296 | T67: 10250 | U67: 3120 | V67: 7130 | W67: =P67*55+T67 -> 14430 | X67: 2015-07-30 | Y67: 2015-07-29
A68: 20 | B68: 臨海 | C68: A635 | D68: いすゞ | E68: JBUS | F68: QPG-LV234L3 | G68: LV234L3 | H68: 7001090 | I68: 足立200か | J68: 3176 | K68: 6HK1 | L68: 7.79 | M68: 軽油 | N68: 26 | O68: 49 | P68: 76 | Q68: 1042 | R68: 249 | S68: 296 | T68: 10250 | U68: 3120 | V68: 7130 | W68: 14430 | X68: 2015-07-30 | Y68: 2015-07-29
A69: 20 | B69: 臨海 | C69: A636 | D69: いすゞ | E69: JBUS | F69: QPG-LV234L3 | G69: LV234L3 | H69: 7001103 | I69: 足立200か | J69: 3195 | K69: 6HK1 | L69: 7.79 | M69: 軽油 | N69: 26 | O69: 49 | P69: 76 | Q69: 1042 | R69: 249 | S69: 296 | T69: 10250 | U69: 3120 | V69: 7130 | W69: 14430 | X69: 2015-09-03 | Y69: 2015-09-02
A70: 17 | B70: 青戸 | C70: A637 | D70: いすゞ | E70: JBUS | F70: QPG-LV234L3 | G70: LV234L3 | H70: 7001104 | I70: 足立200か | J70: 3196 | K70: 6HK1 | L70: 7.79 | M70: 軽油 | N70: 26 | O70: 49 | P70: 76 | Q70: 1042 | R70: 249 | S70: 296 | T70: 10250 | U70: 3120 | V70: 7130 | W70: 14430 | X70: 2015-09-03 | Y70: 2015-09-02
A71: 17 | B71: 青戸 | C71: A638 | D71: いすゞ | E71: JBUS | F71: QPG-LV234L3 | G71: LV234L3 | H71: 7001105 | I71: 足立200か | J71: 3197 | K71: 6HK1 | L71: 7.79 | M71: 軽油 | N71: 26 | O71: 49 | P71: 76 | Q71: 1042 | R71: 249 | S71: 296 | T71: 10250 | U71: 3120 | V71: 7130 | W71: 14430 | X71: 2015-09-03 | Y71: 2015-09-02
A72: 19 | B72: 江戸川 | C72: A639 | D72: いすゞ | E72: JBUS | F72: QPG-LV234L3 | G72: LV234L3 | H72: 7001120 | I72: 足立200か | J72: 3231 | K72: 6HK1 | L72: 7.79 | M72: 軽油 | N72: 26 | O72: 49 | P72: 76 | Q72: 1042 | R72: 249 | S72: 296 | T72: 10250 | U72: 3120 | V72: 7130 | W72: 14430 | X72: 2015-10-28 | Y72: 2015-10-27
A73: 19 | B73: 江戸川 | C73: A640 | D73: いすゞ | E73: JBUS | F73: QPG-LV234L3 | G73: LV234L3 | H73: 7001127 | I73: 足立200か | J73: 3255 | K73: 6HK1 | L73: 7.79 | M73: 軽油 | N73: 26 | O73: 49 | P73: 76 | Q73: 1042 | R73: 249 | S73: 296 | T73: 10250 | U73: 3120 | V73: 7130 | W73: 14430 | X73: 2015-12-01 | Y73: 2015-11-30
A74: 19 | B74: 江戸川 | C74: A641 | D74: いすゞ | E74: JBUS | F74: QPG-LV234L3 | G74: LV234L3 | H74: 7001128 | I74: 足立200か | J74: 3256 | K74: 6HK1 | L74: 7.79 | M74: 軽油 | N74: 26 | O74: 49 | P74: 76 | Q74: 1042 | R74: 249 | S74: 296 | T74: 10250 | U74: 3120 | V74: 7130 | W74: 14430 | X74: 2015-12-01 | Y74: 2015-11-30
A75: 19 | B75: 江戸川 | C75: A643 | D75: いすゞ | E75: JBUS | F75: QPG-LV234L3 | G75: LV234L3 | H75: 7001140 | I75: 足立200か | J75: 3269 | K75: 6HK1 | L75: 7.79 | M75: 軽油 | N75: 26 | O75: 49 | P75: 76 | Q75: 1042 | R75: 249 | S75: 296 | T75: 10250 | U75: 3120 | V75: 7130 | W75: 14430 | X75: 2015-12-11 | Y75: 2015-12-10
A76: 19 | B76: 江戸川 | C76: A644 | D76: いすゞ | E76: JBUS | F76: QPG-LV234L3 | G76: LV234L3 | H76: 7001141 | I76: 足立200か | J76: 3270 | K76: 6HK1 | L76: 7.79 | M76: 軽油 | N76: 26 | O76: 49 | P76: 76 | Q76: 1042 | R76: 249 | S76: 296 | T76: 10250 | U76: 3120 | V76: 7130 | W76: 14430 | X76: 2015-12-11 | Y76: 2015-12-10
A77: 19 | B77: 江戸川 | C77: A645 | D77: いすゞ | E77: JBUS | F77: QPG-LV234L3 | G77: LV234L3 | H77: 7001161 | I77: 足立200か | J77: 3294 | K77: 6HK1 | L77: 7.79 | M77: 軽油 | N77: 26 | O77: 49 | P77: 76 | Q77: 1042 | R77: 249 | S77: 296 | T77: 10250 | U77: 3120 | V77: 7130 | W77: 14430 | X77: 2016-01-28 | Y77: 2016-01-27
A78: 19 | B78: 江戸川 | C78: A646 | D78: いすゞ | E78: JBUS | F78: QPG-LV234L3 | G78: LV234L3 | H78: 7001162 | I78: 足立200か | J78: 3295 | K78: 6HK1 | L78: 7.79 | M78: 軽油 | N78: 26 | O78: 49 | P78: 76 | Q78: 1042 | R78: 249 | S78: 296 | T78: 10250 | U78: 3120 | V78: 7130 | W78: 14430 | X78: 2016-01-28 | Y78: 2016-01-27
A79: 22 | B79: 有明 | C79: A647 | D79: いすゞ | E79: JBUS | F79: QPG-LV234L3 | G79: LV234L3 | H79: 7001098 | I79: 江東200か | J79: 105 | K79: 6HK1 | L79: 7.79 | M79: 軽油 | N79: 26 | O79: 49 | P79: 76 | Q79: 1042 | R79: 249 | S79: 296 | T79: 10250 | U79: 3120 | V79: 7130 | W79: 14430 | X79: 2015-08-08 | Y79: 2015-08-07
A80: 22 | B80: 有明 | C80: A648 | D80: いすゞ | E80: JBUS | F80: QPG-LV234L3 | G80: LV234L3 | H80: 7001108 | I80: 江東200か | J80: 104 | K80: 6HK1 | L80: 7.79 | M80: 軽油 | N80: 26 | O80: 49 | P80: 76 | Q80: 1042 | R80: 249 | S80: 296 | T80: 10250 | U80: 3120 | V80: 7130 | W80: 14430 | X80: 2015-09-08 | Y80: 2015-09-07
A81: 22 | B81: 有明 | C81: A650 | D81: いすゞ | E81: JBUS | F81: QPG-LV234L3 | G81: LV234L3 | H81: 7001111 | I81: 江東200か | J81: 103 | K81: 6HK1 | L81: 7.79 | M81: 軽油 | N81: 26 | O81: 49 | P81: 76 | Q81: 1042 | R81: 249 | S81: 296 | T81: 10250 | U81: 3120 | V81: 7130 | W81: 14430 | X81: 2015-09-16 | Y81: 2015-09-15
A82: 18 | B82: 江東 | C82: A651 | D82: いすゞ | E82: JBUS | F82: QPG-LV234L3 | G82: LV234L3 | H82: 7001112 | I82: 足立200か | J82: 3206 | K82: 6HK1 | L82: 7.79 | M82: 軽油 | N82: 26 | O82: 49 | P82: 76 | Q82: 1042 | R82: 249 | S82: 296 | T82: 10250 | U82: 3120 | V82: 7130 | W82: 14430 | X82: 2015-09-16 | Y82: 2015-09-15
A83: 18 | B83: 江東 | C83: A652 | D83: いすゞ | E83: JBUS | F83: QPG-LV234L3 | G83: LV234L3 | H83: 7001119 | I83: 足立200か | J83: 3221 | K83: 6HK1 | L83: 7.79 | M83: 軽油 | N83: 26 | O83: 49 | P83: 76 | Q83: 1042 | R83: 249 | S83: 296 | T83: 10250 | U83: 3120 | V83: 7130 | W83: 14430 | X83: 2015-10-09 | Y83: 2015-10-08
A84: 18 | B84: 江東 | C84: A653 | D84: いすゞ | E84: JBUS | F84: QPG-LV234L3 | G84: LV234L3 | H84: 7001136 | I84: 足立200か | J84: 3259 | K84: 6HK1 | L84: 7.79 | M84: 軽油 | N84: 26 | O84: 49 | P84: 76 | Q84: 1042 | R84: 249 | S84: 296 | T84: 10250 | U84: 3120 | V84: 7130 | W84: 14430 | X84: 2015-12-04 | Y84: 2015-12-03
A85: 18 | B85: 江東 | C85: A654 | D85: いすゞ | E85: JBUS | F85: QPG-LV234L3 | G85: LV234L3 | H85: 7001137 | I85: 足立200か | J85: 3260 | K85: 6HK1 | L85: 7.79 | M85: 軽油 | N85: 26 | O85: 49 | P85: 76 | Q85: 1042 | R85: 249 | S85: 296 | T85: 10250 | U85: 3120 | V85: 7130 | W85: 14430 | X85: 2015-12-04 | Y85: 2015-12-03
A86: 18 | B86: 江東 | C86: A655 | D86: いすゞ | E86: JBUS | F86: QPG-LV234L3 | G86: LV234L3 | H86: 7001144 | I86: 足立200か | J86: 3278 | K86: 6HK1 | L86: 7.79 | M86: 軽油 | N86: 26 | O86: 49 | P86: 76 | Q86: 1042 | R86: 249 | S86: 296 | T86: 10250 | U86: 3120 | V86: 7130 | W86: 14430 | X86: 2015-12-25 | Y86: 2015-12-24
A87: 18 | B87: 江東 | C87: A656 | D87: いすゞ | E87: JBUS | F87: QPG-LV234L3 | G87: LV234L3 | H87: 7001145 | I87: 足立200か | J87: 3279 | K87: 6HK1 | L87: 7.79 | M87: 軽油 | N87: 26 | O87: 49 | P87: 76 | Q87: 1042 | R87: 249 | S87: 296 | T87: 10250 | U87: 3120 | V87: 7130 | W87: 14430 | X87: 2015-12-25 | Y87: 2015-12-24
A88: 18 | B88: 江東 | C88: A657 | D88: いすゞ | E88: JBUS | F88: QPG-LV234L3 | G88: LV234L3 | H88: 7001170 | I88: 足立200か | J88: 3302 | K88: 6HK1 | L88: 7.79 | M88: 軽油 | N88: 26 | O88: 49 | P88: 76 | Q88: 1042 | R88: 249 | S88: 296 | T88: 10250 | U88: 3120 | V88: 7130 | W88: 14430 | X88: 2016-02-11 | Y88: 2016-02-10
A89: 22 | B89: 有明 | C89: A658 | D89: いすゞ | E89: JBUS | F89: QPG-LV234L3 | G89: LV234L3 | H89: 7001171 | I89: 江東200か | J89: 106 | K89: 6HK1 | L89: 7.79 | M89: 軽油 | N89: 26 | O89: 49 | P89: 76 | Q89: 1042 | R89: 249 | S89: 296 | T89: 10250 | U89: 3120 | V89: 7130 | W89: 14430 | X89: 2016-02-11 | Y89: 2016-02-10
A90: 20 | B90: 臨海 | C90: A659 | D90: いすゞ | E90: JBUS | F90: QPG-LV234L3 | G90: LV234L3 | H90: 7001088 | I90: 足立200か | J90: 3174 | K90: 6HK1 | L90: 7.79 | M90: 軽油 | N90: 26 | O90: 49 | P90: 76 | Q90: 1042 | R90: 249 | S90: 296 | T90: 10250 | U90: 3120 | V90: 7130 | W90: 14430 | X90: 2015-07-28 | Y90: 2015-07-27
A91: 20 | B91: 臨海 | C91: A660 | D91: いすゞ | E91: JBUS | F91: QPG-LV234L3 | G91: LV234L3 | H91: 7001109 | I91: 足立200か | J91: 3203 | K91: 6HK1 | L91: 7.79 | M91: 軽油 | N91: 26 | O91: 49 | P91: 76 | Q91: 1042 | R91: 249 | S91: 296 | T91: 10250 | U91: 3120 | V91: 7130 | W91: 14430 | X91: 2015-09-12 | Y91: 2015-09-11
A92: 20 | B92: 臨海 | C92: A661 | D92: いすゞ | E92: JBUS | F92: QPG-LV234L3 | G92: LV234L3 | H92: 7001110 | I92: 足立200か | J92: 3204 | K92: 6HK1 | L92: 7.79 | M92: 軽油 | N92: 26 | O92: 49 | P92: 76 | Q92: 1042 | R92: 249 | S92: 296 | T92: 10250 | U92: 3120 | V92: 7130 | W92: 14430 | X92: 2015-09-12 | Y92: 2015-09-11
A93: 20 | B93: 臨海 | C93: A662 | D93: いすゞ | E93: JBUS | F93: QPG-LV234L3 | G93: LV234L3 | H93: 7001125 | I93: 足立200か | J93: 3237 | K93: 6HK1 | L93: 7.79 | M93: 軽油 | N93: 26 | O93: 49 | P93: 76 | Q93: 1042 | R93: 249 | S93: 296 | T93: 10250 | U93: 3120 | V93: 7130 | W93: 14430 | X93: 2015-11-07 | Y93: 2015-11-06
A94: 11 | B94: 巣鴨 | C94: A663 | D94: いすゞ | E94: JBUS | F94: QPG-LV234L3 | G94: LV234L3 | H94: 7001126 | I94: 練馬230い | J94: 663 | K94: 6HK1 | L94: 7.79 | M94: 軽油 | N94: 26 | O94: 49 | P94: 76 | Q94: 1042 | R94: 249 | S94: 296 | T94: 10250 | U94: 3120 | V94: 7130 | W94: 14430 | X94: 2015-11-07 | Y94: 2015-11-06
A95: 21 | B95: 深川 | C95: A664 | D95: いすゞ | E95: JBUS | F95: QPG-LV234L3 | G95: LV234L3 | H95: 7001084 | I95: 足立200か | J95: 3165 | K95: 6HK1 | L95: 7.79 | M95: 軽油 | N95: 26 | O95: 49 | P95: 76 | Q95: 1042 | R95: 249 | S95: 296 | T95: 10250 | U95: 3120 | V95: 7130 | W95: 14430 | X95: 2015-07-22 | Y95: 2015-07-21
A96: 21 | B96: 深川 | C96: A665 | D96: いすゞ | E96: JBUS | F96: QPG-LV234L3 | G96: LV234L3 | H96: 7001085 | I96: 足立200か | J96: 3166 | K96: 6HK1 | L96: 7.79 | M96: 軽油 | N96: 26 | O96: 49 | P96: 76 | Q96: 1042 | R96: 249 | S96: 296 | T96: 10250 | U96: 3120 | V96: 7130 | W96: 14430 | X96: 2015-07-22 | Y96: 2015-07-21
A97: 21 | B97: 深川 | C97: A666 | D97: いすゞ | E97: JBUS | F97: QPG-LV234L3 | G97: LV234L3 | H97: 7001091 | I97: 足立200か | J97: 3178 | K97: 6HK1 | L97: 7.79 | M97: 軽油 | N97: 26 | O97: 49 | P97: 76 | Q97: 1042 | R97: 249 | S97: 296 | T97: 10250 | U97: 3120 | V97: 7130 | W97: 14430 | X97: 2015-08-01 | Y97: 2015-07-31
A98: 21 | B98: 深川 | C98: A667 | D98: いすゞ | E98: JBUS | F98: QPG-LV234L3 | G98: LV234L3 | H98: 7001092 | I98: 足立200か | J98: 3179 | K98: 6HK1 | L98: 7.79 | M98: 軽油 | N98: 26 | O98: 49 | P98: 76 | Q98: 1042 | R98: 249 | S98: 296 | T98: 10250 | U98: 3120 | V98: 7130 | W98: 14430 | X98: 2015-08-01 | Y98: 2015-07-31
A99: 21 | B99: 深川 | C99: A668 | D99: いすゞ | E99: JBUS | F99: QPG-LV234L3 | G99: LV234L3 | H99: 7001177 | I99: 足立200か | J99: 3313 | K99: 6HK1 | L99: 7.79 | M99: 軽油 | N99: 26 | O99: 49 | P99: 76 | Q99: 1042 | R99: 249 | S99: 296 | T99: 10250 | U99: 3120 | V99: 7130 | W99: 14430 | X99: 2016-02-23 | Y99: 2016-02-22
A100: 21 | B100: 深川 | C100: A669 | D100: いすゞ | E100: JBUS | F100: QPG-LV234L3 | G100: LV234L3 | H100: 7001178 | I100: 足立200か | J100: 3314 | K100: 6HK1 | L100: 7.79 | M100: 軽油 | N100: 26 | O100: 49 | P100: 76 | Q100: 1042 | R100: 249 | S100: 296 | T100: 10250 | U100: 3120 | V100: 7130 | W100: 14430 | X100: 2016-02-23 | Y100: 2016-02-22
A101: 21 | B101: 深川 | C101: A670 | D101: いすゞ | E101: JBUS | F101: QPG-LV234L3 | G101: LV234L3 | H101: 7001179 | I101: 足立200か | J101: 3315 | K101: 6HK1 | L101: 7.79 | M101: 軽油 | N101: 26 | O101: 49 | P101: 76 | Q101: 1042 | R101: 249 | S101: 296 | T101: 10250 | U101: 3120 | V101: 7130 | W101: 14430 | X101: 2016-02-23 | Y101: 2016-02-22
A102: 21 | B102: 深川 | C102: A671 | D102: いすゞ | E102: JBUS | F102: QPG-LV234L3 | G102: LV234L3 | H102: 7001180 | I102: 足立200か | J102: 3316 | K102: 6HK1 | L102: 7.79 | M102: 軽油 | N102: 26 | O102: 49 | P102: 76 | Q102: 1042 | R102: 249 | S102: 296 | T102: 10250 | U102: 3120 | V102: 7130 | W102: 14430 | X102: 2016-02-23 | Y102: 2016-02-22
A103: 15 | B103: 南千住 | C103: B700 | D103: いすゞ | E103: JBUS | F103: QDG-LV290N1 | G103: LV290N1 | H103: 7000817 | I103: 足立200か | J103: 3554 | K103: 4HK1 | L103: 5.19 | M103: 軽油 | N103: 22 | O103: 55 | P103: 78 | Q103: 1043 | R103: 248 | S103: 304 | T103: 9620 | U103: 3290 | V103: 6330 | W103: 13910 | X103: 2017-03-15 | Y103: 2017-03-14
A104: 1 | B104: 品川 | C104: B703 | D104: いすゞ | E104: JBUS | F104: QDG-LV290N1 | G104: LV290N1 | H104: 7000461 | I104: 品川200か | J104: 3052 | K104: 4HK1 | L104: 5.19 | M104: 軽油 | N104: 22 | O104: 54 | P104: 77 | Q104: 1043 | R104: 248 | S104: 304 | T104: 9620 | U104: 3270 | V104: 6350 | W104: 13855 | X104: 2016-10-29 | Y104: 2016-10-28
A105: 1 | B105: 品川 | C105: B704 | D105: いすゞ | E105: JBUS | F105: QDG-LV290N1 | G105: LV290N1 | H105: 7000462 | I105: 品川200か | J105: 3053 | K105: 4HK1 | L105: 5.19 | M105: 軽油 | N105: 22 | O105: 54 | P105: 77 | Q105: 1043 | R105: 248 | S105: 304 | T105: 9620 | U105: 3270 | V105: 6350 | W105: 13855 | X105: 2016-10-29 | Y105: 2016-10-28
A106: 1 | B106: 品川 | C106: B705 | D106: いすゞ | E106: JBUS | F106: QDG-LV290N1 | G106: LV290N1 | H106: 7000463 | I106: 品川200か | J106: 3054 | K106: 4HK1 | L106: 5.19 | M106: 軽油 | N106: 22 | O106: 54 | P106: 77 | Q106: 1043 | R106: 248 | S106: 304 | T106: 9620 | U106: 3270 | V106: 6350 | W106: 13855 | X106: 2016-10-29 | Y106: 2016-10-28
A107: 1 | B107: 品川 | C107: B706 | D107: いすゞ | E107: JBUS | F107: QDG-LV290N1 | G107: LV290N1 | H107: 7000464 | I107: 品川200か | J107: 3055 | K107: 4HK1 | L107: 5.19 | M107: 軽油 | N107: 22 | O107: 54 | P107: 77 | Q107: 1043 | R107: 248 | S107: 304 | T107: 9680 | U107: 3320 | V107: 6360 | W107: 13915 | X107: 2016-10-29 | Y107: 2016-10-28
A108: 1 | B108: 品川 | C108: B707 | D108: いすゞ | E108: JBUS | F108: QDG-LV290N1 | G108: LV290N1 | H108: 7000472 | I108: 品川200か | J108: 3057 | K108: 4HK1 | L108: 5.19 | M108: 軽油 | N108: 22 | O108: 54 | P108: 77 | Q108: 1043 | R108: 248 | S108: 304 | T108: 9690 | U108: 3320 | V108: 6370 | W108: 13925 | X108: 2016-11-11 | Y108: 2016-11-10
A109: 1 | B109: 品川 | C109: B708 | D109: いすゞ | E109: JBUS | F109: QDG-LV290N1 | G109: LV290N1 | H109: 7000473 | I109: 品川200か | J109: 3058 | K109: 4HK1 | L109: 5.19 | M109: 軽油 | N109: 22 | O109: 54 | P109: 77 | Q109: 1043 | R109: 248 | S109: 304 | T109: 9680 | U109: 3320 | V109: 6360 | W109: 13915 | X109: 2016-11-11 | Y109: 2016-11-10
A110: 1 | B110: 品川 | C110: B709 | D110: いすゞ | E110: JBUS | F110: QDG-LV290N1 | G110: LV290N1 | H110: 7000474 | I110: 品川200か | J110: 3059 | K110: 4HK1 | L110: 5.19 | M110: 軽油 | N110: 22 | O110: 54 | P110: 77 | Q110: 1043 | R110: 248 | S110: 304 | T110: 9680 | U110: 3320 | V110: 6360 | W110: 13915 | X110: 2016-11-11 | Y110: 2016-11-10
A111: 1 | B111: 品川 | C111: B710 | D111: いすゞ | E111: JBUS | F111: QDG-LV290N1 | G111: LV290N1 | H111: 7000475 | I111: 品川200か | J111: 3060 | K111: 4HK1 | L111: 5.19 | M111: 軽油 | N111: 22 | O111: 54 | P111: 77 | Q111: 1043 | R111: 248 | S111: 304 | T111: 9640 | U111: 3290 | V111: 6350 | W111: 13875 | X111: 2016-11-11 | Y111: 2016-11-10
A112: 1 | B112: 品川 | C112: B711 | D112: いすゞ | E112: JBUS | F112: QDG-LV290N1 | G112: LV290N1 | H112: 7000481 | I112: 品川200か | J112: 3069 | K112: 4HK1 | L112: 5.19 | M112: 軽油 | N112: 22 | O112: 54 | P112: 77 | Q112: 1043 | R112: 248 | S112: 304 | T112: 9690 | U112: 3330 | V112: 6360 | W112: 13925 | X112: 2016-11-25 | Y112: 2016-11-24
A113: 1 | B113: 品川 | C113: B712 | D113: いすゞ | E113: JBUS | F113: QDG-LV290N1 | G113: LV290N1 | H113: 7000482 | I113: 品川200か | J113: 3070 | K113: 4HK1 | L113: 5.19 | M113: 軽油 | N113: 22 | O113: 54 | P113: 77 | Q113: 1043 | R113: 248 | S113: 304 | T113: 9690 | U113: 3320 | V113: 6370 | W113: 13925 | X113: 2016-11-25 | Y113: 2016-11-24
A114: 1 | B114: 品川 | C114: B713 | D114: いすゞ | E114: JBUS | F114: QDG-LV290N1 | G114: LV290N1 | H114: 7000483 | I114: 品川200か | J114: 3071 | K114: 4HK1 | L114: 5.19 | M114: 軽油 | N114: 22 | O114: 54 | P114: 77 | Q114: 1043 | R114: 248 | S114: 304 | T114: 9690 | U114: 3330 | V114: 6360 | W114: 13925 | X114: 2016-11-25 | Y114: 2016-11-24
A115: 3 | B115: 港南 | C115: B714 | D115: いすゞ | E115: JBUS | F115: QDG-LV290N1 | G115: LV290N1 | H115: 7000447 | I115: 品川200か | J115: 3048 | K115: 4HK1 | L115: 5.19 | M115: 軽油 | N115: 22 | O115: 54 | P115: 77 | Q115: 1043 | R115: 248 | S115: 304 | T115: 9680 | U115: 3320 | V115: 6360 | W115: 13915 | X115: 2016-10-05 | Y115: 2016-10-04
A116: 3 | B116: 港南 | C116: B715 | D116: いすゞ | E116: JBUS | F116: QDG-LV290N1 | G116: LV290N1 | H116: 7000448 | I116: 品川200か | J116: 3050 | K116: 4HK1 | L116: 5.19 | M116: 軽油 | N116: 22 | O116: 54 | P116: 77 | Q116: 1043 | R116: 248 | S116: 304 | T116: 9660 | U116: 3300 | V116: 6360 | W116: 13895 | X116: 2016-10-05 | Y116: 2016-10-04
A117: 3 | B117: 港南 | C117: B716 | D117: いすゞ | E117: JBUS | F117: QDG-LV290N1 | G117: LV290N1 | H117: 7000460 | I117: 品川200か | J117: 3051 | K117: 4HK1 | L117: 5.19 | M117: 軽油 | N117: 22 | O117: 54 | P117: 77 | Q117: 1043 | R117: 248 | S117: 304 | T117: 9660 | U117: 3300 | V117: 6360 | W117: 13895 | X117: 2016-10-27 | Y117: 2016-10-26
A118: 19 | B118: 江戸川 | C118: B717 | D118: いすゞ | E118: JBUS | F118: QDG-LV290N1 | G118: LV290N1 | H118: 7000452 | I118: 足立200か | J118: 4207 | K118: 4HK1 | L118: 5.19 | M118: 軽油 | N118: 22 | O118: 54 | P118: 77 | Q118: 1043 | R118: 248 | S118: 304 | T118: 9620 | U118: 3270 | V118: 6350 | W118: 13855 | X118: 2016-10-14 | Y118: 2016-10-13
A119: 5 | B119: 新宿 | C119: B718 | D119: いすゞ | E119: JBUS | F119: QDG-LV290N1 | G119: LV290N1 | H119: 7000453 | I119: 練馬200か | J119: 3205 | K119: 4HK1 | L119: 5.19 | M119: 軽油 | N119: 22 | O119: 54 | P119: 77 | Q119: 1043 | R119: 248 | S119: 304 | T119: 9620 | U119: 3270 | V119: 6350 | W119: 13855 | X119: 2016-10-14 | Y119: 2016-10-13
A120: 5 | B120: 新宿 | C120: B719 | D120: いすゞ | E120: JBUS | F120: QDG-LV290N1 | G120: LV290N1 | H120: 7000469 | I120: 練馬200か | J120: 3218 | K120: 4HK1 | L120: 5.19 | M120: 軽油 | N120: 22 | O120: 54 | P120: 77 | Q120: 1043 | R120: 248 | S120: 304 | T120: 9620 | U120: 3270 | V120: 6350 | W120: 13855 | X120: 2016-11-05 | Y120: 2016-11-04
A121: 6 | B121: 小滝橋 | C121: B720 | D121: いすゞ | E121: JBUS | F121: QDG-LV290N1 | G121: LV290N1 | H121: 7000495 | I121: 練馬200か | J121: 3253 | K121: 4HK1 | L121: 5.19 | M121: 軽油 | N121: 22 | O121: 54 | P121: 77 | Q121: 1043 | R121: 248 | S121: 304 | T121: 9610 | U121: 3250 | V121: 6360 | W121: 13845 | X121: 2016-12-23 | Y121: 2016-12-22
A122: 6 | B122: 小滝橋 | C122: B721 | D122: いすゞ | E122: JBUS | F122: QDG-LV290N1 | G122: LV290N1 | H122: 7000496 | I122: 練馬200か | J122: 3254 | K122: 4HK1 | L122: 5.19 | M122: 軽油 | N122: 22 | O122: 54 | P122: 77 | Q122: 1043 | R122: 248 | S122: 304 | T122: 9610 | U122: 3260 | V122: 6350 | W122: 13845 | X122: 2016-12-23 | Y122: 2016-12-22
A123: 6 | B123: 小滝橋 | C123: B722 | D123: いすゞ | E123: JBUS | F123: QDG-LV290N1 | G123: LV290N1 | H123: 7000497 | I123: 練馬200か | J123: 3255 | K123: 4HK1 | L123: 5.19 | M123: 軽油 | N123: 22 | O123: 54 | P123: 77 | Q123: 1043 | R123: 248 | S123: 304 | T123: 9610 | U123: 3250 | V123: 6360 | W123: 13845 | X123: 2016-12-23 | Y123: 2016-12-22
A124: 8 | B124: 杉並 | C124: B723 | D124: いすゞ | E124: JBUS | F124: QDG-LV290N1 | G124: LV290N1 | H124: 7000456 | I124: 杉並200か | J124: 77 | K124: 4HK1 | L124: 5.19 | M124: 軽油 | N124: 22 | O124: 54 | P124: 77 | Q124: 1043 | R124: 248 | S124: 304 | T124: 9620 | U124: 3270 | V124: 6350 | W124: 13855 | X124: 2016-10-21 | Y124: 2016-10-20
A125: 8 | B125: 杉並 | C125: B724 | D125: いすゞ | E125: JBUS | F125: QDG-LV290N1 | G125: LV290N1 | H125: 7000457 | I125: 杉並200か | J125: 78 | K125: 4HK1 | L125: 5.19 | M125: 軽油 | N125: 22 | O125: 54 | P125: 77 | Q125: 1043 | R125: 248 | S125: 304 | T125: 9620 | U125: 3270 | V125: 6350 | W125: 13855 | X125: 2016-10-21 | Y125: 2016-10-20
A126: 8 | B126: 杉並 | C126: B725 | D126: いすゞ | E126: JBUS | F126: QDG-LV290N1 | G126: LV290N1 | H126: 7000479 | I126: 杉並200か | J126: 83 | K126: 4HK1 | L126: 5.19 | M126: 軽油 | N126: 22 | O126: 54 | P126: 77 | Q126: 1043 | R126: 248 | S126: 304 | T126: 9620 | U126: 3270 | V126: 6350 | W126: 13855 | X126: 2016-11-22 | Y126: 2016-11-21
A127: 8 | B127: 杉並 | C127: B726 | D127: いすゞ | E127: JBUS | F127: QDG-LV290N1 | G127: LV290N1 | H127: 7000480 | I127: 杉並200か | J127: 84 | K127: 4HK1 | L127: 5.19 | M127: 軽油 | N127: 22 | O127: 54 | P127: 77 | Q127: 1043 | R127: 248 | S127: 304 | T127: 9620 | U127: 3270 | V127: 6350 | W127: 13855 | X127: 2016-11-22 | Y127: 2016-11-21
A128: 22 | B128: 有明 | C128: B727 | D128: いすゞ | E128: JBUS | F128: QDG-LV290N1 | G128: LV290N1 | H128: 7000491 | I128: 江東200か | J128: 70 | K128: 4HK1 | L128: 5.19 | M128: 軽油 | N128: 22 | O128: 54 | P128: 77 | Q128: 1043 | R128: 248 | S128: 304 | T128: 9620 | U128: 3270 | V128: 6350 | W128: 13855 | X128: 2016-12-14 | Y128: 2016-12-13
A129: 7 | B129: 早稲田 | C129: B728 | D129: いすゞ | E129: JBUS | F129: QDG-LV290N1 | G129: LV290N1 | H129: 7000470 | I129: 練馬200か | J129: 3223 | K129: 4HK1 | L129: 5.19 | M129: 軽油 | N129: 22 | O129: 54 | P129: 77 | Q129: 1043 | R129: 248 | S129: 304 | T129: 9620 | U129: 3270 | V129: 6350 | W129: 13855 | X129: 2016-11-09 | Y129: 2016-11-08
A130: 7 | B130: 早稲田 | C130: B729 | D130: いすゞ | E130: JBUS | F130: QDG-LV290N1 | G130: LV290N1 | H130: 7000471 | I130: 練馬200か | J130: 3224 | K130: 4HK1 | L130: 5.19 | M130: 軽油 | N130: 22 | O130: 54 | P130: 77 | Q130: 1043 | R130: 248 | S130: 304 | T130: 9620 | U130: 3270 | V130: 6350 | W130: 13855 | X130: 2016-11-09 | Y130: 2016-11-08
A131: 9 | B131: 青梅 | C131: B730 | D131: いすゞ | E131: JBUS | F131: QDG-LV290N1 | G131: LV290N1 | H131: 7000512 | I131: 八王子200か | J131: 2099 | K131: 4HK1 | L131: 5.19 | M131: 軽油 | N131: 22 | O131: 54 | P131: =N131+O131+1 -> 77 | Q131: 1043 | R131: 248 | S131: 304 | T131: 9740 | U131: 3270 | V131: 6350 | W131: =P131*55+T131 -> 13975 | X131: 2016-12-21 | Y131: 2016-12-20
A132: 9 | B132: 青梅 | C132: B731 | D132: いすゞ | E132: JBUS | F132: QDG-LV290N1 | G132: LV290N1 | H132: 7000513 | I132: 八王子200か | J132: 2108 | K132: 4HK1 | L132: 5.19 | M132: 軽油 | N132: 22 | O132: 54 | P132: 77 | Q132: 1043 | R132: 248 | S132: 304 | T132: 9740 | U132: 3280 | V132: 6460 | W132: 13975 | X132: 2017-01-12 | Y132: 2017-01-11
A133: 9 | B133: 青梅 | C133: B732 | D133: いすゞ | E133: JBUS | F133: QDG-LV290N1 | G133: LV290N1 | H133: 7000514 | I133: 八王子200か | J133: 2109 | K133: 4HK1 | L133: 5.19 | M133: 軽油 | N133: 22 | O133: 54 | P133: 77 | Q133: 1043 | R133: 248 | S133: 304 | T133: 9740 | U133: 3280 | V133: 6460 | W133: 13975 | X133: 2017-01-12 | Y133: 2017-01-11
A134: 9 | B134: 青梅 | C134: B733 | D134: いすゞ | E134: JBUS | F134: QDG-LV290N1 | G134: LV290N1 | H134: 7000515 | I134: 八王子200か | J134: 2114 | K134: 4HK1 | L134: 5.19 | M134: 軽油 | N134: 22 | O134: 54 | P134: 77 | Q134: 1043 | R134: 248 | S134: 304 | T134: 9740 | U134: 3280 | V134: 6460 | W134: 13975 | X134: 2017-01-21 | Y134: 2017-01-20
A135: 9 | B135: 青梅 | C135: B734 | D135: いすゞ | E135: JBUS | F135: QDG-LV290N1 | G135: LV290N1 | H135: 7000623 | I135: 八王子200か | J135: 2115 | K135: 4HK1 | L135: 5.19 | M135: 軽油 | N135: 22 | O135: 54 | P135: 77 | Q135: 1043 | R135: 248 | S135: 304 | T135: 9740 | U135: 3280 | V135: 6460 | W135: 13975 | X135: 2017-01-21 | Y135: 2017-01-20
A136: 11 | B136: 巣鴨 | C136: B735 | D136: いすゞ | E136: JBUS | F136: QDG-LV290N1 | G136: LV290N1 | H136: 7000454 | I136: 練馬200か | J136: 3207 | K136: 4HK1 | L136: 5.19 | M136: 軽油 | N136: 22 | O136: 54 | P136: 77 | Q136: 1043 | R136: 248 | S136: 304 | T136: 9620 | U136: 3270 | V136: 6350 | W136: 13855 | X136: 2016-10-19 | Y136: 2016-10-18
A137: 11 | B137: 巣鴨 | C137: B736 | D137: いすゞ | E137: JBUS | F137: QDG-LV290N1 | G137: LV290N1 | H137: 7000455 | I137: 練馬200か | J137: 3208 | K137: 4HK1 | L137: 5.19 | M137: 軽油 | N137: 22 | O137: 54 | P137: 77 | Q137: 1043 | R137: 248 | S137: 304 | T137: 9620 | U137: 3270 | V137: 6350 | W137: 13855 | X137: 2016-10-19 | Y137: 2016-10-18
A138: 11 | B138: 巣鴨 | C138: B737 | D138: いすゞ | E138: JBUS | F138: QDG-LV290N1 | G138: LV290N1 | H138: 7000508 | I138: 練馬200か | J138: 3256 | K138: 4HK1 | L138: 5.19 | M138: 軽油 | N138: 22 | O138: 54 | P138: 77 | Q138: 1043 | R138: 248 | S138: 304 | T138: 9630 | U138: 3280 | V138: 6350 | W138: 13865 | X138: 2017-01-25 | Y138: 2017-01-24
A139: 11 | B139: 巣鴨 | C139: B738 | D139: いすゞ | E139: JBUS | F139: QDG-LV290N1 | G139: LV290N1 | H139: 7000509 | I139: 練馬200か | J139: 3257 | K139: 4HK1 | L139: 5.19 | M139: 軽油 | N139: 22 | O139: 54 | P139: 77 | Q139: 1043 | R139: 248 | S139: 304 | T139: 9630 | U139: 3280 | V139: 6350 | W139: 13865 | X139: 2017-01-25 | Y139: 2017-01-24
A140: 11 | B140: 巣鴨 | C140: B739 | D140: いすゞ | E140: JBUS | F140: QDG-LV290N1 | G140: LV290N1 | H140: 7000510 | I140: 練馬200か | J140: 3258 | K140: 4HK1 | L140: 5.19 | M140: 軽油 | N140: 22 | O140: 54 | P140: 77 | Q140: 1043 | R140: 248 | S140: 304 | T140: 9630 | U140: 3280 | V140: 6350 | W140: 13865 | X140: 2017-01-25 | Y140: 2017-01-24
A141: 12 | B141: 北 | C141: B740 | D141: いすゞ | E141: JBUS | F141: QDG-LV290N1 | G141: LV290N1 | H141: 7000487 | I141: 練馬200か | J141: 3240 | K141: 4HK1 | L141: 5.19 | M141: 軽油 | N141: 22 | O141: 54 | P141: 77 | Q141: 1043 | R141: 248 | S141: 304 | T141: 9620 | U141: 3270 | V141: 6350 | W141: 13855 | X141: 2016-12-09 | Y141: 2016-12-08
A142: 12 | B142: 北 | C142: B741 | D142: いすゞ | E142: JBUS | F142: QDG-LV290N1 | G142: LV290N1 | H142: 7000488 | I142: 練馬200か | J142: 3241 | K142: 4HK1 | L142: 5.19 | M142: 軽油 | N142: 22 | O142: 54 | P142: 77 | Q142: 1043 | R142: 248 | S142: 304 | T142: 9620 | U142: 3270 | V142: 6350 | W142: 13855 | X142: 2016-12-09 | Y142: 2016-12-08
A143: 12 | B143: 北 | C143: B743 | D143: いすゞ | E143: JBUS | F143: QDG-LV290N1 | G143: LV290N1 | H143: 7000489 | I143: 練馬200か | J143: 3243 | K143: 4HK1 | L143: 5.19 | M143: 軽油 | N143: 22 | O143: 54 | P143: 77 | Q143: 1043 | R143: 248 | S143: 304 | T143: 9620 | U143: 3270 | V143: 6350 | W143: 13855 | X143: 2016-12-09 | Y143: 2016-12-08
A144: 12 | B144: 北 | C144: B744 | D144: いすゞ | E144: JBUS | F144: QDG-LV290N1 | G144: LV290N1 | H144: 7000490 | I144: 練馬200か | J144: 3244 | K144: 4HK1 | L144: 5.19 | M144: 軽油 | N144: 22 | O144: 54 | P144: 77 | Q144: 1043 | R144: 248 | S144: 304 | T144: 9620 | U144: 3270 | V144: 6350 | W144: 13855 | X144: 2016-12-09 | Y144: 2016-12-08
A145: 14 | B145: 千住 | C145: B745 | D145: いすゞ | E145: JBUS | F145: QDG-LV290N1 | G145: LV290N1 | H145: 7000445 | I145: 足立200か | J145: 3434 | K145: 4HK1 | L145: 5.19 | M145: 軽油 | N145: 22 | O145: 54 | P145: 77 | Q145: 1043 | R145: 248 | S145: 304 | T145: 9620 | U145: 3270 | V145: 6350 | W145: 13855 | X145: 2016-09-28 | Y145: 2016-09-27
A146: 14 | B146: 千住 | C146: B746 | D146: いすゞ | E146: JBUS | F146: QDG-LV290N1 | G146: LV290N1 | H146: 7000446 | I146: 足立200か | J146: 3435 | K146: 4HK1 | L146: 5.19 | M146: 軽油 | N146: 22 | O146: 54 | P146: 77 | Q146: 1043 | R146: 248 | S146: 304 | T146: 9620 | U146: 3270 | V146: 6350 | W146: 13855 | X146: 2016-09-28 | Y146: 2016-09-27
A147: 14 | B147: 千住 | C147: B747 | D147: いすゞ | E147: JBUS | F147: QDG-LV290N1 | G147: LV290N1 | H147: 7000458 | I147: 足立200か | J147: 3444 | K147: 4HK1 | L147: 5.19 | M147: 軽油 | N147: 22 | O147: 54 | P147: 77 | Q147: 1043 | R147: 248 | S147: 304 | T147: 9620 | U147: 3270 | V147: 6350 | W147: 13855 | X147: 2016-10-25 | Y147: 2016-10-24
A148: 14 | B148: 千住 | C148: B748 | D148: いすゞ | E148: JBUS | F148: QDG-LV290N1 | G148: LV290N1 | H148: 7000459 | I148: 足立200か | J148: 3445 | K148: 4HK1 | L148: 5.19 | M148: 軽油 | N148: 22 | O148: 54 | P148: 77 | Q148: 1043 | R148: 248 | S148: 304 | T148: 9620 | U148: 3270 | V148: 6350 | W148: 13855 | X148: 2016-10-25 | Y148: 2016-10-24
A149: 14 | B149: 千住 | C149: B750 | D149: いすゞ | E149: JBUS | F149: QDG-LV290N1 | G149: LV290N1 | H149: 7000505 | I149: 足立200か | J149: 3507 | K149: 4HK1 | L149: 5.19 | M149: 軽油 | N149: 22 | O149: 54 | P149: 77 | Q149: 1043 | R149: 248 | S149: 304 | T149: 9620 | U149: 3270 | V149: 6350 | W149: 13855 | X149: 2017-01-19 | Y149: 2017-01-18
A150: 21 | B150: 深川 | C150: B751 | D150: いすゞ | E150: JBUS | F150: QDG-LV290N1 | G150: LV290N1 | H150: 7000506 | I150: 江東200か | J150: 118 | K150: 4HK1 | L150: 5.19 | M150: 軽油 | N150: 22 | O150: 54 | P150: 77 | Q150: 1043 | R150: 248 | S150: 304 | T150: 9620 | U150: 3270 | V150: 6350 | W150: 13855 | X150: 2017-01-19 | Y150: 2017-01-18
A151: 21 | B151: 深川 | C151: B752 | D151: いすゞ | E151: JBUS | F151: QDG-LV290N1 | G151: LV290N1 | H151: 7000507 | I151: 江東200か | J151: 117 | K151: 4HK1 | L151: 5.19 | M151: 軽油 | N151: 22 | O151: 54 | P151: 77 | Q151: 1043 | R151: 248 | S151: 304 | T151: 9620 | U151: 3270 | V151: 6350 | W151: 13855 | X151: 2017-01-19 | Y151: 2017-01-18
A152: 19 | B152: 江戸川 | C152: B753 | D152: いすゞ | E152: JBUS | F152: QDG-LV290N1 | G152: LV290N1 | H152: 7000443 | I152: 足立200か | J152: 3432 | K152: 4HK1 | L152: 5.19 | M152: 軽油 | N152: 22 | O152: 54 | P152: 77 | Q152: 1043 | R152: 248 | S152: 304 | T152: 9620 | U152: 3270 | V152: 6350 | W152: 13855 | X152: 2016-09-24 | Y152: 2016-09-23
A153: 19 | B153: 江戸川 | C153: B754 | D153: いすゞ | E153: JBUS | F153: QDG-LV290N1 | G153: LV290N1 | H153: 7000444 | I153: 足立200か | J153: 3433 | K153: 4HK1 | L153: 5.19 | M153: 軽油 | N153: 22 | O153: 54 | P153: 77 | Q153: 1043 | R153: 248 | S153: 304 | T153: 9620 | U153: 3270 | V153: 6350 | W153: 13855 | X153: 2016-09-24 | Y153: 2016-09-23
A154: 17 | B154: 青戸 | C154: B755 | D154: いすゞ | E154: JBUS | F154: QDG-LV290N1 | G154: LV290N1 | H154: 7000441 | I154: 足立200か | J154: 3423 | K154: 4HK1 | L154: 5.19 | M154: 軽油 | N154: 22 | O154: 54 | P154: 77 | Q154: 1043 | R154: 248 | S154: 304 | T154: 9620 | U154: 3270 | V154: 6350 | W154: 13855 | X154: 2016-09-15 | Y154: 2016-09-14
A155: 17 | B155: 青戸 | C155: B756 | D155: いすゞ | E155: JBUS | F155: QDG-LV290N1 | G155: LV290N1 | H155: 7000442 | I155: 足立200か | J155: 3424 | K155: 4HK1 | L155: 5.19 | M155: 軽油 | N155: 22 | O155: 54 | P155: 77 | Q155: 1043 | R155: 248 | S155: 304 | T155: 9620 | U155: 3270 | V155: 6350 | W155: 13855 | X155: 2016-09-15 | Y155: 2016-09-14
A156: 17 | B156: 青戸 | C156: B757 | D156: いすゞ | E156: JBUS | F156: QDG-LV290N1 | G156: LV290N1 | H156: 7000511 | I156: 足立200か | J156: 3515 | K156: 4HK1 | L156: 5.19 | M156: 軽油 | N156: 22 | O156: 54 | P156: 77 | Q156: 1043 | R156: 248 | S156: 304 | T156: 9620 | U156: 3270 | V156: 6350 | W156: 13855 | X156: 2017-01-26 | Y156: 2017-01-25
A157: 18 | B157: 江東 | C157: B758 | D157: いすゞ | E157: JBUS | F157: QDG-LV290N1 | G157: LV290N1 | H157: 7000476 | I157: 足立200か | J157: 3459 | K157: 4HK1 | L157: 5.19 | M157: 軽油 | N157: 22 | O157: 54 | P157: 77 | Q157: 1043 | R157: 248 | S157: 304 | T157: 9620 | U157: 3270 | V157: 6350 | W157: 13855 | X157: 2016-11-16 | Y157: 2016-11-15
A158: 18 | B158: 江東 | C158: B759 | D158: いすゞ | E158: JBUS | F158: QDG-LV290N1 | G158: LV290N1 | H158: 7000477 | I158: 足立200か | J158: 3460 | K158: 4HK1 | L158: 5.19 | M158: 軽油 | N158: 22 | O158: 54 | P158: 77 | Q158: 1043 | R158: 248 | S158: 306 | T158: 9620 | U158: 3270 | V158: 6350 | W158: 13855 | X158: 2016-11-16 | Y158: 2016-11-15
A159: 18 | B159: 江東 | C159: B760 | D159: いすゞ | E159: JBUS | F159: QDG-LV290N1 | G159: LV290N1 | H159: 7000478 | I159: 足立200か | J159: 3461 | K159: 4HK1 | L159: 5.19 | M159: 軽油 | N159: 22 | O159: 54 | P159: 77 | Q159: 1043 | R159: 248 | S159: 304 | T159: 9620 | U159: 3270 | V159: 6350 | W159: 13855 | X159: 2016-11-16 | Y159: 2016-11-15
A160: 18 | B160: 江東 | C160: B761 | D160: いすゞ | E160: JBUS | F160: QDG-LV290N1 | G160: LV290N1 | H160: 7000492 | I160: 足立200か | J160: 3486 | K160: 4HK1 | L160: 5.19 | M160: 軽油 | N160: 22 | O160: 54 | P160: 77 | Q160: 1043 | R160: 248 | S160: 304 | T160: 9620 | U160: 3270 | V160: 6350 | W160: 13855 | X160: 2016-12-16 | Y160: 2016-12-15
A161: 18 | B161: 江東 | C161: B762 | D161: いすゞ | E161: JBUS | F161: QDG-LV290N1 | G161: LV290N1 | H161: 7000493 | I161: 足立200か | J161: 3487 | K161: 4HK1 | L161: 5.19 | M161: 軽油 | N161: 22 | O161: 54 | P161: 77 | Q161: 1043 | R161: 248 | S161: 304 | T161: 9620 | U161: 3270 | V161: 6350 | W161: 13855 | X161: 2016-12-16 | Y161: 2016-12-15
A162: 18 | B162: 江東 | C162: B763 | D162: いすゞ | E162: JBUS | F162: QDG-LV290N1 | G162: LV290N1 | H162: 7000494 | I162: 足立200か | J162: 3488 | K162: 4HK1 | L162: 5.19 | M162: 軽油 | N162: 22 | O162: 54 | P162: 77 | Q162: 1043 | R162: 248 | S162: 304 | T162: 9620 | U162: 3270 | V162: 6350 | W162: 13855 | X162: 2016-12-16 | Y162: 2016-12-15
A163: 22 | B163: 有明 | C163: B764 | D163: いすゞ | E163: JBUS | F163: QDG-LV290N1 | G163: LV290N1 | H163: 7000449 | I163: 江東200か | J163: 71 | K163: 4HK1 | L163: 5.19 | M163: 軽油 | N163: 22 | O163: 54 | P163: 77 | Q163: 1043 | R163: 248 | S163: 304 | T163: 9620 | U163: 3270 | V163: 6350 | W163: 13855 | X163: 2016-10-06 | Y163: 2016-10-05
A164: 22 | B164: 有明 | C164: B765 | D164: いすゞ | E164: JBUS | F164: QDG-LV290N1 | G164: LV290N1 | H164: 7000450 | I164: 江東200か | J164: 72 | K164: 4HK1 | L164: 5.19 | M164: 軽油 | N164: 22 | O164: 54 | P164: 77 | Q164: 1043 | R164: 248 | S164: 304 | T164: 9620 | U164: 3270 | V164: 6350 | W164: 13855 | X164: 2016-10-06 | Y164: 2016-10-05
A165: 20 | B165: 臨海 | C165: B766 | D165: いすゞ | E165: JBUS | F165: QDG-LV290N1 | G165: LV290N1 | H165: 7000451 | I165: 足立200か | J165: 3440 | K165: 4HK1 | L165: 5.19 | M165: 軽油 | N165: 22 | O165: 54 | P165: 77 | Q165: 1043 | R165: 248 | S165: 304 | T165: 9620 | U165: 3270 | V165: 6350 | W165: 13855 | X165: 2016-10-06 | Y165: 2016-10-05
A166: 20 | B166: 臨海 | C166: B767 | D166: いすゞ | E166: JBUS | F166: QDG-LV290N1 | G166: LV290N1 | H166: 7000484 | I166: 足立200か | J166: 3470 | K166: 4HK1 | L166: 5.19 | M166: 軽油 | N166: 22 | O166: 54 | P166: 77 | Q166: 1043 | R166: 248 | S166: 304 | T166: 9640 | U166: 3290 | V166: 6350 | W166: 13875 | X166: 2016-12-02 | Y166: 2016-12-01
A167: 20 | B167: 臨海 | C167: B768 | D167: いすゞ | E167: JBUS | F167: QDG-LV290N1 | G167: LV290N1 | H167: 7000485 | I167: 足立200か | J167: 3471 | K167: 4HK1 | L167: 5.19 | M167: 軽油 | N167: 22 | O167: 54 | P167: 77 | Q167: 1043 | R167: 248 | S167: 304 | T167: 9640 | U167: 3290 | V167: 6350 | W167: 13875 | X167: 2016-12-02 | Y167: 2016-12-01
A168: 20 | B168: 臨海 | C168: B769 | D168: いすゞ | E168: JBUS | F168: QDG-LV290N1 | G168: LV290N1 | H168: 7000486 | I168: 足立200か | J168: 3472 | K168: 4HK1 | L168: 5.19 | M168: 軽油 | N168: 22 | O168: 54 | P168: 77 | Q168: 1043 | R168: 248 | S168: 304 | T168: 9640 | U168: 3290 | V168: 6350 | W168: 13875 | X168: 2016-12-02 | Y168: 2016-12-01
A169: 20 | B169: 臨海 | C169: B770 | D169: いすゞ | E169: JBUS | F169: QDG-LV290N1 | G169: LV290N1 | H169: 7000498 | I169: 足立200か | J169: 3493 | K169: 4HK1 | L169: 5.19 | M169: 軽油 | N169: 22 | O169: 54 | P169: 77 | Q169: 1043 | R169: 248 | S169: 304 | T169: 9620 | U169: 3270 | V169: 6350 | W169: 13855 | X169: 2016-12-27 | Y169: 2016-12-26
A170: 20 | B170: 臨海 | C170: B771 | D170: いすゞ | E170: JBUS | F170: QDG-LV290N1 | G170: LV290N1 | H170: 7000499 | I170: 足立200か | J170: 3494 | K170: 4HK1 | L170: 5.19 | M170: 軽油 | N170: 22 | O170: 54 | P170: 77 | Q170: 1043 | R170: 248 | S170: 304 | T170: 9620 | U170: 3270 | V170: 6350 | W170: 13855 | X170: 2016-12-27 | Y170: 2016-12-26
A171: 19 | B171: 江戸川 | C171: B772 | D171: いすゞ | E171: JBUS | F171: QDG-LV290N1 | G171: LV290N1 | H171: 7000500 | I171: 足立200か | J171: 3495 | K171: 4HK1 | L171: 5.19 | M171: 軽油 | N171: 22 | O171: 54 | P171: 77 | Q171: 1043 | R171: 248 | S171: 304 | T171: 9620 | U171: 3270 | V171: 6350 | W171: 13855 | X171: 2016-12-27 | Y171: 2016-12-26
A172: 19 | B172: 江戸川 | C172: B773 | D172: いすゞ | E172: JBUS | F172: QDG-LV290N1 | G172: LV290N1 | H172: 7000501 | I172: 足立200か | J172: 3496 | K172: 4HK1 | L172: 5.19 | M172: 軽油 | N172: 22 | O172: 54 | P172: 77 | Q172: 1043 | R172: 248 | S172: 304 | T172: 9620 | U172: 3270 | V172: 6350 | W172: 13855 | X172: 2016-12-27 | Y172: 2016-12-26
A173: 19 | B173: 江戸川 | C173: B774 | D173: いすゞ | E173: JBUS | F173: QDG-LV290N1 | G173: LV290N1 | H173: 7000438 | I173: 足立200か | J173: 3417 | K173: 4HK1 | L173: 5.19 | M173: 軽油 | N173: 22 | O173: 54 | P173: 77 | Q173: 1043 | R173: 248 | S173: 304 | T173: 9620 | U173: 3270 | V173: 6350 | W173: 13855 | X173: 2016-09-13 | Y173: 2016-09-12
A174: 19 | B174: 江戸川 | C174: B775 | D174: いすゞ | E174: JBUS | F174: QDG-LV290N1 | G174: LV290N1 | H174: 7000439 | I174: 足立200か | J174: 3418 | K174: 4HK1 | L174: 5.19 | M174: 軽油 | N174: 22 | O174: 54 | P174: 77 | Q174: 1043 | R174: 248 | S174: 304 | T174: 9620 | U174: 3270 | V174: 6350 | W174: 13855 | X174: 2016-09-13 | Y174: 2016-09-12
A175: 19 | B175: 江戸川 | C175: B776 | D175: いすゞ | E175: JBUS | F175: QDG-LV290N1 | G175: LV290N1 | H175: 7000440 | I175: 足立200か | J175: 3419 | K175: 4HK1 | L175: 5.19 | M175: 軽油 | N175: 22 | O175: 54 | P175: 77 | Q175: 1043 | R175: 248 | S175: 304 | T175: 9620 | U175: 3270 | V175: 6350 | W175: 13855 | X175: 2016-09-13 | Y175: 2016-09-12
A176: 19 | B176: 江戸川 | C176: B777 | D176: いすゞ | E176: JBUS | F176: QDG-LV290N1 | G176: LV290N1 | H176: 7000502 | I176: 足立200か | J176: 3500 | K176: 4HK1 | L176: 5.19 | M176: 軽油 | N176: 22 | O176: 54 | P176: 77 | Q176: 1043 | R176: 248 | S176: 304 | T176: 9620 | U176: 3270 | V176: 6350 | W176: 13855 | X176: 2017-01-17 | Y176: 2017-01-16
A177: 21 | B177: 深川 | C177: B778 | D177: いすゞ | E177: JBUS | F177: QDG-LV290N1 | G177: LV290N1 | H177: 7000503 | I177: 江東200か | J177: 127 | K177: 4HK1 | L177: 5.19 | M177: 軽油 | N177: 22 | O177: 54 | P177: 77 | Q177: 1043 | R177: 248 | S177: 304 | T177: 9620 | U177: 3270 | V177: 6350 | W177: 13855 | X177: 2017-01-17 | Y177: 2017-01-16
A178: 21 | B178: 深川 | C178: B779 | D178: いすゞ | E178: JBUS | F178: QDG-LV290N1 | G178: LV290N1 | H178: 7000504 | I178: 江東200か | J178: 128 | K178: 4HK1 | L178: 5.19 | M178: 軽油 | N178: 22 | O178: 54 | P178: 77 | Q178: 1043 | R178: 248 | S178: 304 | T178: 9620 | U178: 3270 | V178: 6350 | W178: 13855 | X178: 2017-01-17 | Y178: 2017-01-16
A179: 21 | B179: 深川 | C179: B780 | D179: いすゞ | E179: JBUS | F179: QDG-LV290N1 | G179: LV290N1 | H179: 7000465 | I179: 足立200か | J179: 3448 | K179: 4HK1 | L179: 5.19 | M179: 軽油 | N179: 22 | O179: 54 | P179: 77 | Q179: 1043 | R179: 248 | S179: 304 | T179: 9620 | U179: 3270 | V179: 6350 | W179: 13855 | X179: 2016-11-02 | Y179: 2016-11-01
A180: 21 | B180: 深川 | C180: B781 | D180: いすゞ | E180: JBUS | F180: QDG-LV290N1 | G180: LV290N1 | H180: 7000466 | I180: 足立200か | J180: 3450 | K180: 4HK1 | L180: 5.19 | M180: 軽油 | N180: 22 | O180: 54 | P180: 77 | Q180: 1043 | R180: 248 | S180: 304 | T180: 9620 | U180: 3270 | V180: 6350 | W180: 13855 | X180: 2016-11-02 | Y180: 2016-11-01
A181: 21 | B181: 深川 | C181: B782 | D181: いすゞ | E181: JBUS | F181: QDG-LV290N1 | G181: LV290N1 | H181: 7000467 | I181: 足立200か | J181: 3451 | K181: 4HK1 | L181: 5.19 | M181: 軽油 | N181: 22 | O181: 54 | P181: 77 | Q181: 1043 | R181: 248 | S181: 304 | T181: 9620 | U181: 3270 | V181: 6350 | W181: 13855 | X181: 2016-11-02 | Y181: 2016-11-01
A182: 21 | B182: 深川 | C182: B783 | D182: いすゞ | E182: JBUS | F182: QDG-LV290N1 | G182: LV290N1 | H182: 7000468 | I182: 足立200か | J182: 3452 | K182: 4HK1 | L182: 5.19 | M182: 軽油 | N182: 22 | O182: 54 | P182: 77 | Q182: 1043 | R182: 248 | S182: 304 | T182: 9620 | U182: 3270 | V182: 6350 | W182: 13855 | X182: 2016-11-02 | Y182: 2016-11-01
A183: 4 | B183: 渋谷 | C183: B784 | D183: いすゞ | E183: JBUS | F183: QDG-LV290N1 | G183: LV290N1 | H183: 7000803 | I183: 品川200か | J183: 3125 | K183: 4HK1 | L183: 5.19 | M183: 軽油 | N183: 22 | O183: 55 | P183: 78 | Q183: 1043 | R183: 248 | S183: 304 | T183: 9620 | U183: 3290 | V183: 6330 | W183: 13910 | X183: 2017-03-08 | Y183: 2017-03-07
A184: 4 | B184: 渋谷 | C184: B785 | D184: いすゞ | E184: JBUS | F184: QDG-LV290N1 | G184: LV290N1 | H184: 7000804 | I184: 品川200か | J184: 3126 | K184: 4HK1 | L184: 5.19 | M184: 軽油 | N184: 22 | O184: 55 | P184: 78 | Q184: 1043 | R184: 248 | S184: 304 | T184: 9620 | U184: 3290 | V184: 6330 | W184: 13910 | X184: 2017-03-08 | Y184: 2017-03-07
A185: 4 | B185: 渋谷 | C185: B786 | D185: いすゞ | E185: JBUS | F185: QDG-LV290N1 | G185: LV290N1 | H185: 7000805 | I185: 品川200か | J185: 3127 | K185: 4HK1 | L185: 5.19 | M185: 軽油 | N185: 22 | O185: 55 | P185: 78 | Q185: 1043 | R185: 248 | S185: 304 | T185: 9620 | U185: 3290 | V185: 6330 | W185: 13910 | X185: 2017-03-08 | Y185: 2017-03-07
A186: 4 | B186: 渋谷 | C186: B787 | D186: いすゞ | E186: JBUS | F186: QDG-LV290N1 | G186: LV290N1 | H186: 7000810 | I186: 品川200か | J186: 3130 | K186: 4HK1 | L186: 5.19 | M186: 軽油 | N186: 22 | O186: 55 | P186: 78 | Q186: 1043 | R186: 248 | S186: 304 | T186: 9690 | U186: 3340 | V186: 6350 | W186: 13980 | X186: 2017-03-14 | Y186: 2017-03-13
A187: 4 | B187: 渋谷 | C187: B788 | D187: いすゞ | E187: JBUS | F187: QDG-LV290N1 | G187: LV290N1 | H187: 7000811 | I187: 品川200か | J187: 3131 | K187: 4HK1 | L187: 5.19 | M187: 軽油 | N187: 22 | O187: 55 | P187: 78 | Q187: 1043 | R187: 248 | S187: 304 | T187: 9630 | U187: 3290 | V187: 6340 | W187: 13920 | X187: 2017-03-14 | Y187: 2017-03-13
A188: 4 | B188: 渋谷 | C188: B789 | D188: いすゞ | E188: JBUS | F188: QDG-LV290N1 | G188: LV290N1 | H188: 7000812 | I188: 品川200か | J188: 3132 | K188: 4HK1 | L188: 5.19 | M188: 軽油 | N188: 22 | O188: 55 | P188: 78 | Q188: 1043 | R188: 248 | S188: 304 | T188: 9690 | U188: 3340 | V188: 6350 | W188: 13980 | X188: 2017-03-14 | Y188: 2017-03-13
A189: 4 | B189: 渋谷 | C189: B790 | D189: いすゞ | E189: JBUS | F189: QDG-LV290N1 | G189: LV290N1 | H189: 7000813 | I189: 品川200か | J189: 3133 | K189: 4HK1 | L189: 5.19 | M189: 軽油 | N189: 22 | O189: 55 | P189: 78 | Q189: 1043 | R189: 248 | S189: 304 | T189: 9690 | U189: 3340 | V189: 6350 | W189: 13980 | X189: 2017-03-14 | Y189: 2017-03-13
A190: 4 | B190: 渋谷 | C190: B791 | D190: いすゞ | E190: JBUS | F190: QDG-LV290N1 | G190: LV290N1 | H190: 7000818 | I190: 品川200か | J190: 3136 | K190: 4HK1 | L190: 5.19 | M190: 軽油 | N190: 22 | O190: 55 | P190: 78 | Q190: 1043 | R190: 248 | S190: 304 | T190: 9660 | U190: 3290 | V190: 6370 | W190: 13950 | X190: 2017-03-15 | Y190: 2017-03-14
A191: 4 | B191: 渋谷 | C191: B792 | D191: いすゞ | E191: JBUS | F191: QDG-LV290N1 | G191: LV290N1 | H191: 7000819 | I191: 品川200か | J191: 3137 | K191: 4HK1 | L191: 5.19 | M191: 軽油 | N191: 22 | O191: 55 | P191: 78 | Q191: 1043 | R191: 248 | S191: 304 | T191: 9690 | U191: 3330 | V191: 6360 | W191: 13980 | X191: 2017-03-15 | Y191: 2017-03-14
A192: 15 | B192: 南千住 | C192: B793 | D192: いすゞ | E192: JBUS | F192: QDG-LV290N1 | G192: LV290N1 | H192: 7000806 | I192: 足立200か | J192: 3546 | K192: 4HK1 | L192: 5.19 | M192: 軽油 | N192: 22 | O192: 55 | P192: 78 | Q192: 1043 | R192: 248 | S192: 304 | T192: 9620 | U192: 3290 | V192: 6330 | W192: 13910 | X192: 2017-03-11 | Y192: 2017-03-10
A193: 15 | B193: 南千住 | C193: B794 | D193: いすゞ | E193: JBUS | F193: QDG-LV290N1 | G193: LV290N1 | H193: 7000807 | I193: 足立200か | J193: 3547 | K193: 4HK1 | L193: 5.19 | M193: 軽油 | N193: 22 | O193: 55 | P193: 78 | Q193: 1043 | R193: 248 | S193: 304 | T193: 9620 | U193: 3290 | V193: 6330 | W193: 13910 | X193: 2017-03-11 | Y193: 2017-03-10
A194: 15 | B194: 南千住 | C194: B795 | D194: いすゞ | E194: JBUS | F194: QDG-LV290N1 | G194: LV290N1 | H194: 7000808 | I194: 足立200か | J194: 3548 | K194: 4HK1 | L194: 5.19 | M194: 軽油 | N194: 22 | O194: 55 | P194: 78 | Q194: 1043 | R194: 248 | S194: 304 | T194: 9620 | U194: 3290 | V194: 6330 | W194: 13910 | X194: 2017-03-11 | Y194: 2017-03-10
A195: 15 | B195: 南千住 | C195: B796 | D195: いすゞ | E195: JBUS | F195: QDG-LV290N1 | G195: LV290N1 | H195: 7000809 | I195: 足立200か | J195: 3550 | K195: 4HK1 | L195: 5.19 | M195: 軽油 | N195: 22 | O195: 55 | P195: =N195+O195+1 -> 78 | Q195: 1043 | R195: 248 | S195: 304 | T195: 9620 | U195: 3290 | V195: 6330 | W195: =P195*55+T195 -> 13910 | X195: 2017-03-11 | Y195: 2017-03-10
A196: 15 | B196: 南千住 | C196: B797 | D196: いすゞ | E196: JBUS | F196: QDG-LV290N1 | G196: LV290N1 | H196: 7000814 | I196: 足立200か | J196: 3551 | K196: 4HK1 | L196: 5.19 | M196: 軽油 | N196: 22 | O196: 55 | P196: 78 | Q196: 1043 | R196: 248 | S196: 304 | T196: 9620 | U196: 3290 | V196: 6330 | W196: 13910 | X196: 2017-03-15 | Y196: 2017-03-14
A197: 15 | B197: 南千住 | C197: B798 | D197: いすゞ | E197: JBUS | F197: QDG-LV290N1 | G197: LV290N1 | H197: 7000815 | I197: 足立200か | J197: 3552 | K197: 4HK1 | L197: 5.19 | M197: 軽油 | N197: 22 | O197: 55 | P197: 78 | Q197: 1043 | R197: 248 | S197: 304 | T197: 9620 | U197: 3290 | V197: 6330 | W197: 13910 | X197: 2017-03-15 | Y197: 2017-03-14
A198: 15 | B198: 南千住 | C198: B799 | D198: いすゞ | E198: JBUS | F198: QDG-LV290N1 | G198: LV290N1 | H198: 7000816 | I198: 足立200か | J198: 3553 | K198: 4HK1 | L198: 5.19 | M198: 軽油 | N198: 22 | O198: 55 | P198: 78 | Q198: 1043 | R198: 248 | S198: 304 | T198: 9620 | U198: 3290 | V198: 6330 | W198: 13910 | X198: 2017-03-15 | Y198: 2017-03-14
A199: 21 | B199: 深川 | C199: C103 | D199: トヨタ | E199: 日野 | F199: ZBC-MUM1NAE | G199: MUM1NA | H199: 40011 | I199: 足立230き | J199: 103 | K199: 4JM-4JM | L199: 112 | M199: 水素 | N199: 25 | O199: 53 | P199: 79 | Q199: 1052 | R199: 249 | S199: 335 | T199: 11780 | U199: 4390 | V199: 7390 | W199: 16125 | X199: 2018-03-08 | Y199: 2018-03-07
A200: 21 | B200: 深川 | C200: C104 | D200: トヨタ | E200: 日野 | F200: ZBC-MUM1NAE | G200: MUM1NA | H200: 40012 | I200: 足立230か | J200: 104 | K200: 4JM-4JM | L200: 112 | M200: 水素 | N200: 25 | O200: 53 | P200: 79 | Q200: 1052 | R200: 249 | S200: 335 | T200: 11780 | U200: 4390 | V200: 7390 | W200: 16125 | X200: 2018-03-15 | Y200: 2018-03-14
... 1264 more rows
